Workbook

Sheet Datasheet (hidden)
A2: GRUNDLØNINGER GÆLDENDE FOR: | B2: =TODAY() -> 2024-04-23 | D2: =YEAR(B2) -> 2024 | E2: 2025 | F2: 2026
A4: LØNGRUPPER | E4: 2025 | F4: 2026
E5: 0.025 | F5: 0.025
A6: Løngruppe 1 | B6: Angiv selv løn | E6: Angiv selv løn | F6: Angiv selv løn
A7: - Kameraoperatør
A8: - Steadicam operatør
A9: - Food styling
A10: - Stylist (både kostume og sminke)
A11: - Sound designer
A12: Løngruppe 2 | B12: =_xlfn.IFS($D$2=2024,D12,$D$2=2025,E12,$D$2=2026,F12,$D$2=2027,"2027 beregner kræves") -> 4100 | D12: 4100 | E12: =D12*$E$5+D12 -> 4202.5 | F12: =E12*$F$5+E12 -> 4307.5625
A13: - Indspilningsleder
A14: - Location manager / scout
A15: - Tonemester på optagelse
A16: - 1. AC/ B-foto
A17: - Belysningsmester
A18: - SFX Supervisor
A19: - Key grip
A20: - Chefkostume
A21: - Chefrekvisitør
A22: - Chefsminkør
A23: Løngruppe 3 | B23: =_xlfn.IFS($D$2=2024,D23,$D$2=2025,E23,$D$2=2026,F23,$D$2=2027,"2027 beregner kræves") -> 3300 | D23: 3300 | E23: =D23*$E$5+D23 -> 3382.5 | F23: =E23*$F$5+E23 -> 3467.0625
A24: - Statistkoordinator
A25: - 2. AC
A26: - B-Tonemester / Boom op.
A27: - Q-take operatør
A28: - DIT
A29: - Scripter
A30: - Board operator
A31: - Belyser
A32: - Best boy grip
A33: - Kostumier
A34: - Rekvisitør
A35: - Sminkør / Hår
A36: - SFX Tekniker
A37: Løngruppe 4 | B37: =_xlfn.IFS($D$2=2024,D37,$D$2=2025,E37,$D$2=2026,F37,$D$2=2027,"2027 beregner kræves") -> 2750 | D37: 2750 | E37: =D37*$E$5+D37 -> 2818.75 | F37: =E37*$F$5+E37 -> 2889.21875
A38: - Indspilningslederassistant
A39: - Videoassistent
A40: - Data Wrangler
A41: - Belysningsassistent
A42: - Toneassistent
A43: - Grip assistent
A44: - Kostumier assistent
A45: - Rekvisitør assistent
A46: - Sminkør assistent
A47: - SFX assistent
A48: - Locationassistent
A49: Løngruppe 5: | B49: =_xlfn.IFS($D$2=2024,D49,$D$2=2025,E49,$D$2=2026,F49,$D$2=2027,"2027 beregner kræves") -> 1540 | D49: 1540 | E49: =D49*$E$5+D49 -> 1578.5 | F49: =E49*$F$5+E49 -> 1617.9625
A50: - Runner
A51: - Trainee (Tilknyttet en afdeling som ekstra hjælp)
A54: OVERTID FOR LØNGR. 2-4
B55: 0-8 | C55: 8-10t | D55: 10-12t | E55: 12+ t
A56: Forberedelsestid | B56: Normaltimer | C56: 0.25 | D56: 0.5 | E56: 0.75
B58: 0-8 | C58: 8-10t | D58: 10-12t | E58: 12-14t | F58: 14+ t
A59: Optagetid | B59: Normaltimer | C59: 0.25 | D59: 1 | E59: 1.5 | F59: 2
A64: OVERTID FOR LØNGR 5
B65: 0-8 | C65: Rate 1 | D65: Rate 2
A66: Optagetid | B66: Normaltimer | C66: 200 | D66: 350
A69: WEEKEND
A70: Fra Fredag kl 00, til mandag kl 06:00
A71: 1 weekend dag | B71: 0.75
A72: 2 weekend dage | B72: 1
A75: TRANSPORT
A77: Transporttid | B77: 0.75 | C77: Gælder først efter kl 10
A80: GENE TILLÆG
A82: Optagetid ml. 18:00 - 00:00 | B82: 100 | C82: 18:00:00
A83: Optagetid kl. 00:00 - 06:00 | B83: 200 | C83: 00:00:00
C84: 06:00:00
A86: PAUSER
A88: Forsinket afholdt frokost | B88: 172.2 | C88: Diætsatser 2024
A89: Ingen servering ved pause | B89: 172.2 | C89: Diætsatser 2024
A90: 5. time pause ikke afholdt | B90: 45min betaling til normaltimeløn + 25%
A91: 10. time pause ikke afholdt | B91: 30min betaling til normaltimeløn + 100%
A92: 13 time pause ikke afholdt | B92: 15min betaling til normaltimeløn + 150%
A94: RABATORDNINGER
A96: Rabat A: | B96: -0.1 | C96: Gives på alle optagedage, på produktioner på 2-4dage
A97: Rabat B: | B97: -0.15 | C97: Gives på dag 5 og efterfølgende dage på produktioner der har over 4 optagedage
A102: 06:00:00
A103: 06:15:00
A104: 06:30:00
A105: 06:45:00
A106: 07:00:00
A107: 07:15:00
A108: 07:30:00
A109: 07:45:00
A110: 08:00:00
A111: 08:15:00
A112: 08:30:00
A113: 08:45:00
A114: 09:00:00
A115: 09:15:00
A116: 09:30:00
A117: 09:45:00
A118: 10:00:00
A119: 10:15:00
A120: 10:30:00
A121: 10:45:00
A122: 11:00:00
A123: 11:15:00
A124: 11:30:00
A125: 11:45:00
A126: 12:00:00
A127: 12:15:00
A128: 12:30:00
A129: 12:45:00
A130: 13:00:00
A131: 13:15:00
A132: 13:30:00
A133: 13:45:00
A134: 14:00:00
A135: 14:15:00
A136: 14:30:00
A137: 14:45:00
A138: 15:00:00
A139: 15:15:00
A140: 15:30:00
A141: 15:45:00
A142: 16:00:00
A143: 16:15:00
A144: 16:30:00
A145: 16:45:00
A146: 17:00:00
A147: 17:15:00
A148: 17:30:00
A149: 17:45:00
A150: 18:00:00
A151: 18:15:00
A152: 18:30:00
A153: 18:45:00
A154: 19:00:00
A155: 19:15:00
A156: 19:30:00
A157: 19:45:00
A158: 20:00:00
A159: 20:15:00
A160: 20:30:00
A161: 20:45:00
A162: 21:00:00
A163: 21:15:00
A164: 21:30:00
A165: 21:45:00
A166: 22:00:00
A167: 22:15:00
A168: 22:30:00
A169: 22:45:00
A170: 23:00:00
A171: 23:15:00
A172: 23:30:00
A173: 23:45:00
A174: 1
A175: 00:15:00
A176: 00:30:00
A177: 00:45:00
A178: 01:00:00
A179: 01:15:00
A180: 01:30:00
A181: 01:45:00
A182: 02:00:00
A183: 02:15:00
A184: 02:30:00
A185: 02:45:00
A186: 03:00:00
A187: 03:15:00
A188: 03:30:00
A189: 03:45:00
A190: 04:00:00
A191: 04:15:00
A192: 04:30:00
A193: 04:45:00
A194: 05:00:00
A195: 05:15:00
A196: 05:30:00
A197: 05:45:00

Sheet Lønberegner
B1: Produktions titel | H1: Fulde navn | M1: Bank navn | R1: Vælg løn gr./funktion
B2: Produktions titel | H2: Fulde navn | M2: Bank navn | R2: Løngruppe 1
B3: Evt. Produktions nr. | H3: Adresse | M3: Reg & Konto nr.
B4: Evt. Produktions nr. | H4: Adresse | M4: Reg & Konto nr. | R4: Dagsløn: | T4: =_xlfn.IFS(R2=Datasheet!A6,Datasheet!B6,R2=Datasheet!A7,Datasheet!B6,R2=Datasheet!A8,Datasheet!B6,R2=Datasheet!A9,Datasheet!B6,R2=Datasheet!A10,Datasheet!B6,Lønberegner!R2=Datasheet!A11,Datasheet!B6,R2=Datasheet!A12,Datasheet!B12,R2=Datasheet!A13,Datasheet!B12,R2=Datasheet!A14,Datasheet!B12,R2=Datasheet!A15,Datasheet!B12,R2=Datasheet!A16,Datasheet!B12,R2=Datasheet!A17,Datasheet!B12,R2=Datasheet!A18,Datasheet!B12,R2=Datasheet!A18,Datasheet!B12,R2=Datasheet!A19,Datasheet!B12,R2=Datasheet!A20,Datasheet!B12,R2=Datasheet!A21,Datasheet!B12,R2=Datasheet!A22,Datasheet!B12,R2=Datasheet!A23,Datasheet!B23,R2=Datasheet!A24,Datasheet!B23,R2=Datasheet!A25,Datasheet!B23,R2=Datasheet!A26,Datasheet!B23,R2=Datasheet!A27,Datasheet!B23,R2=Datasheet!A28,Datasheet!B23,R2=Datasheet!A29,Datasheet!B23,R2=Datasheet!A30,Datasheet!B23,R2=Datasheet!A31,Datasheet!B23,R2=Datasheet!A32,Datasheet!B23,R2=Datasheet!A33,Datasheet!B23,R2=Datasheet!A34,Datasheet!B23,R2=Datasheet!A35,Datasheet!B23,R2=Datasheet!A36,Datasheet!B23,R2=Datasheet!A37,Datasheet!B37,R2=Datasheet!A38,Datasheet!B37,R2=Datasheet!A39,Datasheet!B37,R2=Datasheet!A40,Datasheet!B37,R2=Datasheet!A41,Datasheet!B37,R2=Datasheet!A42,Datasheet!B37,R2=Datasheet!A43,Datasheet!B37,R2=Datasheet!A44,Datasheet!B37,R2=Datasheet!A45,Datasheet!B37,R2=Datasheet!A46,Datasheet!B37,R2=Datasheet!A47,Datasheet!B37,R2=Datasheet!A48,Datasheet!B37,R2=Datasheet!A49,Datasheet!B49,R2=Datasheet!A50,Datasheet!B49,R2=Datasheet!A51,Datasheet!B49) -> Angiv selv løn
B5: Evt. kontakt reference | H5: Postnr. & By | M5: Telefon
B6: Evt. kontakt reference | H6: Postnr. & By | M6: Telefon | R6: Evt personligt tillæg: | T6: 0
B7: Evt. kunde reference | H7: CPR nr. | M7: Email
B8: Evt. kunde reference | H8: CPR nr. | M8: Email | R8: Dagsløn total: | T8: =IF(T4="Angiv selv løn",T6,T4+T6) -> 0
P11: UDFYLDES KUN FOR OPTAGELSE
B12: UGE # | C12: =WEEKNUM(B15,2) -> 11 | G12: TIME BEREGNER | M12: WEEKEND / HELLIGDAG | N12: GENETILLÆG | P12: TRANSPORT | Q12: PAUSER | T12: RABAT | U12: DIÆTER | W12: A-LØN TOTAL | Y12: DIÆTER TOTAL
B13: Dato | C13: Ugedag | D13: Start | E13: Slut | G13: Timer i alt, ex. Transporttid | H13: Normal-timer | I13: 9-10 timer | J13: 11-12 timer | K13: 13 timer | L13: ≥ 14 timer | M13: Fre 24:00 - Man 06:00 | N13: Optagelse kl. 18 - 00 | O13: Optagelse kl. 00 - 06 | P13: Transporttid til/fra set | Q13: 5. time (30+15min) | R13: 10. time (30min) | S13: 13. time (15min) | T13: Rabat A el. B | U13: Fortæring i arbejdstiden | W13: =SUM(W14:W50) -> 0 | Y13: =SUM(Y15:Y48) -> 344.4
B15: 2024-03-11 | C15: =WEEKDAY(B15,1) -> 1900-01-02 | D15: 08:00:00 | E15: 16:00:00 | G15: =_xlfn.IFS($D16="Fri","-",$D16="Sygdom","-",$D16<>"Fri",IF(AND(E15>0,D15>0),MOD((HOUR(E15)-HOUR(D15))+(MINUTE(E15)-MINUTE(D15))/60,24),0/24)) -> 8 | H15: =IF($T$4=Datasheet!$B$49,(IF(G15=0,0,(IF(AND(G15>0,G15<=4),4,(IF(AND(G15>=4,G15<=8,G15<>0),G15,8)))))),_xlfn.IFS($D16="Fri","-",$D16="Sygdom","4",$D16="Optagelse",(IF(G15>0,8,0)),$D16="Forbered/afrig tid",(IF(G15=0,0,(IF(AND(G15>0,G15<=4),4,(IF(AND(G15>=4,G15<=8,G15<>0),G15,8)))))),$D16="Rejsetid",(IF(AND(G15>0,G15<=4),4,(IF(G15>=4,G15,0)))),$D16="Rejsetid +50%",(IF(AND(G15>0,G15<=4),4,(IF(G15>=4,G15,0)))))) -> 8 | I15: =IF(OR(D16="Optagelse",D16="Forbered/afrig tid"),IF(G15>8,(G15-H15-J15-K15-L15),0),"-") -> 0 | J15: =IF(OR($D16="Optagelse",$D16="Forbered/afrig tid"),IF(G15>10,(G15-H15-K15-L15)-2,0),"-") -> 0 | K15: =IF(OR($D16="Optagelse",$D16="Forbered/afrig tid"),IF(G15>12,(G15-H15-L15)-4,0),"-") -> 0 | L15: =IF(OR(D16="Optagelse",$D16="Forbered/afrig tid"),IF(G15>13,(G15-H15)-5,0),"-") -> 0 | M15: 0.75 | N15: =IF($D16="Optagelse",ColTime(D15,E15,Datasheet!$C$82,Datasheet!$C$83)*24,"-") -> 0 | O15: =IF($D16="Optagelse",ColTime(D15,E15,Datasheet!$C$83,Datasheet!$C$84)*24,"-") -> 0 | P15: 0 | Q15: Forsinket | R15: Planmæssigt | S15: Planmæssigt | T15: Ingen rabat | U15: Ingen diæt
C16: Helligdag? | D16: Optagelse | H16: =IF($T$4=Datasheet!$B$49,"Timeløn",(IF(D16="Rejsetid +50%","Timeløn +50%",(IF(D16="Fri","-","Timeløn"))))) -> Timeløn | I16: =IF($T$4=Datasheet!$B$49,Datasheet!$C$65,(_xlfn.IFS($D16="Fri","-",$D16="Sygdom","-",$D16="Rejsetid","-",D16="Rejsetid +50%","-",D16="Forbered/afrig tid",Datasheet!$C$56,D16="Optagelse",Datasheet!$C$59))) -> 0.25 | J16: =IF($T$4=Datasheet!$B$49,"Rate 1",_xlfn.IFS($D16="Fri","-",$D16="Sygdom","-",$D16="Rejsetid","-",D16="Rejsetid +50%","-",D16="Rejsetid","-",D16="Forbered/afrig tid",Datasheet!$D$56,D16="Optagelse",Datasheet!$D$59)) -> 1 | K16: =IF($T$4=Datasheet!$B$49,"Rate 1",_xlfn.IFS(D16="Fri","-",D16="Rejsetid","-",$D16="Sygdom","-",$D16="Rejsetid","-",D16="Rejsetid +50%","-",D16="Forbered/afrig tid",Datasheet!$E$56,D16="Optagelse",Datasheet!$E$59)) -> 1.5 | L16: =IF($T$4=Datasheet!$B$49,"Rate 2",_xlfn.IFS($D16="Fri","-",$D16="Sygdom","-",$D16="Rejsetid","-",D16="Rejsetid +50%","-",D16="Rejsetid","-",D16="Forbered/afrig tid",Datasheet!$E$56,D16="Optagelse",Datasheet!$F$59)) -> 2 | M16: =IF(AND($C17="Ja",OR($D16="optagelse",$D16="Forbered/afrig tid")),_xlfn.IFS($D16="optagelse",$G15+$P15,$D16="Forbered/afrig tid",$G15),_xlfn.IFS($D16="Fri",0,$D16="rejsetid",0,$D16="rejsetid +50%",0,$D16="sygdom",0,$C15=1,IF(AND($C15=1,$D16="optagelse"),$G15+$P15,G15),$C15=7,IF(AND($C15=7,$D16="optagelse"),$G15+$P15,$G15),$C15=2,IF(($D15*24)<=6,ColTime($D15,6,Datasheet!$C$83,Datasheet!$C$84)*24,0),$C15=3,0,$C15=4,0,$C15=5,0,$C15=6,IF(($D15*24)>6,ColTime($D15,$E15,Datasheet!$C$83,Datasheet!$C$84)*24,0))) -> 0 | N16: =IF($T$4=Datasheet!$B$49,"-",IF($D16="Optagelse","Timetillæg","-")) -> Timetillæg | O16: =IF($T$4=Datasheet!$B$49,"-",IF($D16="Optagelse","Timetillæg","-")) -> Timetillæg | P16: =IF($T$4=Datasheet!$B$49,"-",IF($D16="Optagelse",Datasheet!$B$77,"-")) -> 0.75 | Q16: =(_xlfn.IFS($T$4=Datasheet!$B$49,"-",$D16="Fri","-",$D16="Forbered/afrig tid","-",$D16="Rejsetid","-",$D16="Rejsetid +50%","-",$D16="Sygdom","-",$D16="optagelse",(_xlfn.IFS(Q15="Planmæssigt","-",Q15="Forsinket","Diæt",Q15="Ingen servering","Diæt",Q15="Pause ikke afholdt","Diæt + 45min")))) -> Diæt | R16: =_xlfn.IFS($T$4=Datasheet!$B$49,"-",$D16="Fri","-",$D16="Forbered/afrig tid","-",$D16="Rejsetid","-",$D16="Rejsetid +50%","-",$D16="Sygdom","-",$D16="optagelse",(_xlfn.IFS(R15="Planmæssigt","-",R15="Forsinket","Diæt",R15="Ingen servering","Diæt",R15="Pause ikke afholdt","Diæt + 30min"))) -> - | S16: =_xlfn.IFS($T$4=Datasheet!$B$49,"-",$D16="Fri","-",$D16="Forbered/afrig tid","-",$D16="Rejsetid","-",$D16="Rejsetid +50%","-",$D16="Sygdom","-",$D16="optagelse",(_xlfn.IFS(S15="Planmæssigt","-",S15="Forsinket","Diæt",S15="Ingen servering","Diæt",S15="Pause ikke afholdt","Diæt + 15min"))) -> - | T16: =IF($T4=Datasheet!$B$49,"-",IF(D16="Optagelse",_xlfn.IFS(T15="Ingen rabat","-",T15="Rabat A",Datasheet!$B$96,T15="Rabat B",Datasheet!$B$97),"-")) -> - | U16: =IF(U15="Ingen diæt","-",U15) -> -
C17: Nej | H17: =IF($T$4=Datasheet!$B$49,grundløn/8,(_xlfn.IFS($D16="Fri","-",$D16="Optagelse",grundløn/8,$D16="rejsetid",grundløn/8,$D16="rejsetid +50%",(grundløn/8)*1.5,$D16="Forbered/afrig tid",grundløn/8,$D16="Sygdom",grundløn/8))) -> 0 | I17: =IF($T$4=Datasheet!$B$49,Datasheet!$C$66,_xlfn.IFS($D16="Fri","-",$D16="Sygdom","-",$D16="Rejsetid","-",D16="Rejsetid +50%","-",$D16="Optagelse",grundløn/8*$I16+grundløn/8,$D16="rejsetid","-",$D16="Forbered/afrig tid",grundløn/8*$I16+grundløn/8)) -> 0 | J17: =IF($T$4=Datasheet!$B$49,Datasheet!$C$66,_xlfn.IFS($D16="Fri","-",$D16="Sygdom","-",$D16="Rejsetid","-",D16="Rejsetid +50%","-",$D16="Optagelse",grundløn/8*$J16+grundløn/8,$D16="rejsetid","-",$D16="Forbered/afrig tid",grundløn/8*$J16+grundløn/8)) -> 0 | K17: =IF($T$4=Datasheet!$B$49,Datasheet!$C$66,_xlfn.IFS($D16="Fri","-",$D16="Sygdom","-",$D16="Rejsetid","-",D16="Rejsetid +50%","-",$D16="Optagelse",grundløn/8*$K16+grundløn/8,$D16="rejsetid","-",$D16="Forbered/afrig tid",grundløn/8*$K16+grundløn/8)) -> 0 | L17: =IF($T$4=Datasheet!$B$49,Datasheet!$D$66,_xlfn.IFS($D16="Fri","-",$D16="Sygdom","-",$D16="Rejsetid","-",D16="Rejsetid +50%","-",$D16="Optagelse",grundløn/8*$L16+grundløn/8,$D16="rejsetid","-",$D16="Forbered/afrig tid",grundløn/8*$L16+grundløn/8)) -> 0 | M17: =IF(AND(M16<>0,M16<>"-"),H17*M15,"-") -> - | N17: =IF($T$4=Datasheet!$B$49,"-",IF($D16="Optagelse",Datasheet!$B$82,"-")) -> 100 | O17: =IF($T$4=Datasheet!$B$49,"-",IF($D16="Optagelse",Datasheet!$B$83,"-")) -> 200 | P17: =IF($T$4=Datasheet!$B$49,"-",IF(D16="Optagelse",((grundløn/8)*P16),"-")) -> 0 | Q17: =_xlfn.IFS($T$4=Datasheet!$B$49,"-",$D16="Fri","-",$D16="Forbered/afrig tid","-",$D16="Rejsetid","-",$D16="Rejsetid +50%","-",$D16="Sygdom","-",$D16="optagelse",_xlfn.IFS(Q15="Planmæssigt","-",Q15="Forsinket",Datasheet!$B$88,Q15="Ingen servering",Datasheet!$B$88,Q15="Pause ikke afholdt",Datasheet!$B$88)) -> 172.2 | R17: =_xlfn.IFS($T$4=Datasheet!$B$49,"-",$D16="Fri","-",$D16="Forbered/afrig tid","-",$D16="Rejsetid","-",$D16="Rejsetid +50%","-",$D16="Sygdom","-",$D16="optagelse",_xlfn.IFS(R15="Planmæssigt","-",R15="Forsinket",Datasheet!$B$88,R15="Ingen servering",Datasheet!$B$88,R15="Pause ikke afholdt",Datasheet!$B$88)) -> - | S17: =_xlfn.IFS($T$4=Datasheet!$B$49,"-",$D16="Fri","-",$D16="Forbered/afrig tid","-",$D16="Rejsetid","-",$D16="Rejsetid +50%","-",$D16="Sygdom","-",$D16="optagelse",_xlfn.IFS(S15="Planmæssigt","-",S15="Forsinket",Datasheet!$B$88,S15="Ingen servering",Datasheet!$B$88,S15="Pause ikke afholdt",Datasheet!$B$88)) -> - | T17: =IF($T4=Datasheet!$B$49,"-",(_xlfn.IFS($D16="Fri","-",$D16="rejsetid","-",$D16="Rejsetid +50%","-",$D16="Sygdom","-",$D16="Forbered/afrig tid","-",$D16="Optagelse",(IF(T15="Ingen rabat","-",(SUM(H18:S18))))))) -> - | U17: =IF(OR($Q16<>"-",$R16<>"-",$S16<>"-",D16="Fri"),"-",_xlfn.IFS($U16="-","-",$U16="Morgen",86.1,$U16="Morgen+Frokost",258.3,$U16="Frokost el. Aften",172.2,$U16="Frokost+Aften", 344.4,$U16="Fuld kost",420.5)) -> - | Y17: =SUM(Q17:S17)+SUM(U17) -> 172.2
H18: =IF($D16="Fri","-",(IF(H15>0,H17*H15,"-"))) -> 0 | I18: =IF(AND(I15<>"-",I17<>"-"),I17*I15,"-") -> 0 | J18: =IF(AND(J15<>"-",J17<>"-"),J17*J15,"-") -> 0 | K18: 0 | L18: 0 | M18: =IF(M17<>"-",M17*M16,"-") -> - | N18: =IF(AND(N15<>"-",N17<>"-"),N17*N15,"-") -> 0 | O18: =IF(AND(O15<>"-",O17<>"-"),O17*O15,"-") -> 0 | P18: 0 | Q18: =_xlfn.IFS($T$4=Datasheet!$B$49,"-",$D16="Fri","-",$D16="Forbered/afrig tid","-",$D16="Rejsetid","-",$D16="Rejsetid +50%","-",$D16="Sygdom","-",$D16="optagelse",_xlfn.IFS(Q15="Planmæssigt","-",Q15="Forsinket","-",Q15="Ingen servering","-",Q15="Pause ikke afholdt",($I17*0.75))) -> - | R18: =_xlfn.IFS($T$4=Datasheet!$B$49,"-",$D16="Fri","-",$D16="Forbered/afrig tid","-",$D16="Rejsetid","-",$D16="Rejsetid +50%","-",$D16="Sygdom","-",$D16="optagelse",_xlfn.IFS(R15="Planmæssigt","-",R15="Forsinket","-",R15="Ingen servering","-",R15="Pause ikke afholdt",($J17*0.5))) -> - | S18: =_xlfn.IFS($T$4=Datasheet!$B$49,"-",$D16="Fri","-",$D16="Forbered/afrig tid","-",$D16="Rejsetid","-",$D16="Rejsetid +50%","-",$D16="Sygdom","-",$D16="optagelse",_xlfn.IFS(S15="Planmæssigt","-",S15="Forsinket","-",S15="Ingen servering","-",S15="Pause ikke afholdt",(K17*0.25))) -> - | T18: =_xlfn.IFS($D16="Fri","-",$D16="rejsetid","-",$D16="Rejsetid +50%","-",$D16="Sygdom","-",$D16="Optagelse",(_xlfn.IFS(T17="-","-",T17=0,"-",T17<>0,T17*T16)),$D16="Forbered/afrig tid","-") -> - | U18: - | W18: =_xlfn.IFS($D16="Fri",0,$D16="optagelse",(_xlfn.IFS(SUM(H18:T18)=0,0,SUM(H18:T18)>grundløn,SUM(H18:T18),SUM(H18:T18)<=grundløn,grundløn)),$D16="Forbered/afrig tid",(IF(SUM(H18:T18)=0,0,SUM(H18:T18))),$D16="rejsetid",(IF(SUM(H18:T18)=0,0,SUM(H18:T18))),$D16="rejsetid +50%",(IF(SUM(H18:T18)=0,0,SUM(H18:T18))),$D16="sygdom",(IF(SUM(H18:T18)=0,0,SUM(H18:T18)))) -> 0
B20: =B15+1 -> 2024-03-12 | C20: =WEEKDAY(B20,1) -> 1900-01-03 | D20: 08:00:00 | E20: 16:00:00 | G20: =_xlfn.IFS($D21="Fri","-",$D21="Sygdom","-",$D21<>"Fri",IF(AND(E20>0,D20>0),MOD((HOUR(E20)-HOUR(D20))+(MINUTE(E20)-MINUTE(D20))/60,24),0/24)) -> 8 | H20: =IF($T$4=Datasheet!$B$49,(IF(G20=0,0,(IF(AND(G20>0,G20<=4),4,(IF(AND(G20>=4,G20<=8,G20<>0),G20,8)))))),_xlfn.IFS($D21="Fri","-",$D21="Sygdom","4",$D21="Optagelse",(IF(G20>0,8,0)),$D21="Forbered/afrig tid",(IF(G20=0,0,(IF(AND(G20>0,G20<=4),4,(IF(AND(G20>=4,G20<=8,G20<>0),G20,8)))))),$D21="Rejsetid",(IF(AND(G20>0,G20<=4),4,(IF(G20>=4,G20,0)))),$D21="Rejsetid +50%",(IF(AND(G20>0,G20<=4),4,(IF(G20>=4,G20,0)))))) -> 8 | I20: =IF(OR(D21="Optagelse",D21="Forbered/afrig tid"),IF(G20>8,(G20-H20-J20-K20-L20),0),"-") -> 0 | J20: =IF(OR($D21="Optagelse",$D21="Forbered/afrig tid"),IF(G20>10,(G20-H20-K20-L20)-2,0),"-") -> 0 | K20: =IF(OR($D21="Optagelse",$D21="Forbered/afrig tid"),IF(G20>12,(G20-H20-L20)-4,0),"-") -> 0 | L20: =IF(OR(D21="Optagelse",$D21="Forbered/afrig tid"),IF(G20>13,(G20-H20)-5,0),"-") -> 0 | M20: 0.75 | N20: =IF($D21="Optagelse",ColTime(D20,E20,Datasheet!$C$82,Datasheet!$C$83)*24,"-") -> 0 | O20: =IF($D21="Optagelse",ColTime(D20,E20,Datasheet!$C$83,Datasheet!$C$84)*24,"-") -> 0 | P20: 0 | Q20: Planmæssigt | R20: Planmæssigt | S20: Planmæssigt | T20: Ingen rabat | U20: Ingen diæt
C21: Helligdag? | D21: Optagelse | H21: =IF($T$4=Datasheet!$B$49,"Timeløn",(IF(D21="Rejsetid +50%","Timeløn +50%",(IF(D21="Fri","-","Timeløn"))))) -> Timeløn | I21: =IF($T$4=Datasheet!$B$49,Datasheet!$C$65,(_xlfn.IFS($D21="Fri","-",$D21="Sygdom","-",$D21="Rejsetid","-",D21="Rejsetid +50%","-",D21="Forbered/afrig tid",Datasheet!$C$56,D21="Optagelse",Datasheet!$C$59))) -> 0.25 | J21: =IF($T$4=Datasheet!$B$49,"Rate 1",_xlfn.IFS($D21="Fri","-",$D21="Sygdom","-",$D21="Rejsetid","-",D21="Rejsetid +50%","-",D21="Rejsetid","-",D21="Forbered/afrig tid",Datasheet!$D$56,D21="Optagelse",Datasheet!$D$59)) -> 1 | K21: =IF($T$4=Datasheet!$B$49,"Rate 1",_xlfn.IFS(D21="Fri","-",D21="Rejsetid","-",$D21="Sygdom","-",$D21="Rejsetid","-",D21="Rejsetid +50%","-",D21="Forbered/afrig tid",Datasheet!$E$56,D21="Optagelse",Datasheet!$E$59)) -> 1.5 | L21: =IF($T$4=Datasheet!$B$49,"Rate 2",_xlfn.IFS($D21="Fri","-",$D21="Sygdom","-",$D21="Rejsetid","-",D21="Rejsetid +50%","-",D21="Rejsetid","-",D21="Forbered/afrig tid",Datasheet!$E$56,D21="Optagelse",Datasheet!$F$59)) -> 2 | M21: =IF(AND($C22="Ja",OR($D21="optagelse",$D21="Forbered/afrig tid")),_xlfn.IFS($D21="optagelse",$G20+$P20,$D21="Forbered/afrig tid",$G20),_xlfn.IFS($D21="Fri",0,$D21="rejsetid",0,$D21="rejsetid +50%",0,$D21="sygdom",0,$C20=1,IF(AND($C20=1,$D21="optagelse"),$G20+$P20,G20),$C20=7,IF(AND($C20=7,$D21="optagelse"),$G20+$P20,$G20),$C20=2,IF(($D20*24)<=6,ColTime($D20,6,Datasheet!$C$83,Datasheet!$C$84)*24,0),$C20=3,0,$C20=4,0,$C20=5,0,$C20=6,IF(($D20*24)>6,ColTime($D20,$E20,Datasheet!$C$83,Datasheet!$C$84)*24,0))) -> 0 | N21: =IF($T$4=Datasheet!$B$49,"-",IF($D21="Optagelse","Timetillæg","-")) -> Timetillæg | O21: =IF($T$4=Datasheet!$B$49,"-",IF($D21="Optagelse","Timetillæg","-")) -> Timetillæg | P21: =IF($T$4=Datasheet!$B$49,"-",IF($D21="Optagelse",Datasheet!$B$77,"-")) -> 0.75 | Q21: =(_xlfn.IFS($T$4=Datasheet!$B$49,"-",$D21="Fri","-",$D21="Forbered/afrig tid","-",$D21="Rejsetid","-",$D21="Rejsetid +50%","-",$D21="Sygdom","-",$D21="optagelse",(_xlfn.IFS(Q20="Planmæssigt","-",Q20="Forsinket","Diæt",Q20="Ingen servering","Diæt",Q20="Pause ikke afholdt","Diæt + 45min")))) -> - | R21: =_xlfn.IFS($T$4=Datasheet!$B$49,"-",$D21="Fri","-",$D21="Forbered/afrig tid","-",$D21="Rejsetid","-",$D21="Rejsetid +50%","-",$D21="Sygdom","-",$D21="optagelse",(_xlfn.IFS(R20="Planmæssigt","-",R20="Forsinket","Diæt",R20="Ingen servering","Diæt",R20="Pause ikke afholdt","Diæt + 30min"))) -> - | S21: =_xlfn.IFS($T$4=Datasheet!$B$49,"-",$D21="Fri","-",$D21="Forbered/afrig tid","-",$D21="Rejsetid","-",$D21="Rejsetid +50%","-",$D21="Sygdom","-",$D21="optagelse",(_xlfn.IFS(S20="Planmæssigt","-",S20="Forsinket","Diæt",S20="Ingen servering","Diæt",S20="Pause ikke afholdt","Diæt + 15min"))) -> - | T21: =IF($T9=Datasheet!$B$49,"-",IF(D21="Optagelse",_xlfn.IFS(T20="Ingen rabat","-",T20="Rabat A",Datasheet!$B$96,T20="Rabat B",Datasheet!$B$97),"-")) -> - | U21: =IF(U20="Ingen diæt","-",U20) -> -
C22: Nej | H22: =IF($T$4=Datasheet!$B$49,grundløn/8,(_xlfn.IFS($D21="Fri","-",$D21="Optagelse",grundløn/8,$D21="rejsetid",grundløn/8,$D21="rejsetid +50%",(grundløn/8)*1.5,$D21="Forbered/afrig tid",grundløn/8,$D21="Sygdom",grundløn/8))) -> 0 | I22: =IF($T$4=Datasheet!$B$49,Datasheet!$C$66,_xlfn.IFS($D21="Fri","-",$D21="Sygdom","-",$D21="Rejsetid","-",D21="Rejsetid +50%","-",$D21="Optagelse",grundløn/8*$I21+grundløn/8,$D21="rejsetid","-",$D21="Forbered/afrig tid",grundløn/8*$I21+grundløn/8)) -> 0 | J22: =IF($T$4=Datasheet!$B$49,Datasheet!$C$66,_xlfn.IFS($D21="Fri","-",$D21="Sygdom","-",$D21="Rejsetid","-",D21="Rejsetid +50%","-",$D21="Optagelse",grundløn/8*$J21+grundløn/8,$D21="rejsetid","-",$D21="Forbered/afrig tid",grundløn/8*$J21+grundløn/8)) -> 0 | K22: =IF($T$4=Datasheet!$B$49,Datasheet!$C$66,_xlfn.IFS($D21="Fri","-",$D21="Sygdom","-",$D21="Rejsetid","-",D21="Rejsetid +50%","-",$D21="Optagelse",grundløn/8*$K21+grundløn/8,$D21="rejsetid","-",$D21="Forbered/afrig tid",grundløn/8*$K21+grundløn/8)) -> 0 | L22: =IF($T$4=Datasheet!$B$49,Datasheet!$D$66,_xlfn.IFS($D21="Fri","-",$D21="Sygdom","-",$D21="Rejsetid","-",D21="Rejsetid +50%","-",$D21="Optagelse",grundløn/8*$L21+grundløn/8,$D21="rejsetid","-",$D21="Forbered/afrig tid",grundløn/8*$L21+grundløn/8)) -> 0 | M22: =IF(AND(M21<>0,M21<>"-"),H22*M20,"-") -> - | N22: =IF($T$4=Datasheet!$B$49,"-",IF($D21="Optagelse",Datasheet!$B$82,"-")) -> 100 | O22: =IF($T$4=Datasheet!$B$49,"-",IF($D21="Optagelse",Datasheet!$B$83,"-")) -> 200 | P22: =IF($T$4=Datasheet!$B$49,"-",IF(D21="Optagelse",((grundløn/8)*P21),"-")) -> 0 | Q22: =_xlfn.IFS($T$4=Datasheet!$B$49,"-",$D21="Fri","-",$D21="Forbered/afrig tid","-",$D21="Rejsetid","-",$D21="Rejsetid +50%","-",$D21="Sygdom","-",$D21="optagelse",_xlfn.IFS(Q20="Planmæssigt","-",Q20="Forsinket",Datasheet!$B$88,Q20="Ingen servering",Datasheet!$B$88,Q20="Pause ikke afholdt",Datasheet!$B$88)) -> - | R22: =_xlfn.IFS($T$4=Datasheet!$B$49,"-",$D21="Fri","-",$D21="Forbered/afrig tid","-",$D21="Rejsetid","-",$D21="Rejsetid +50%","-",$D21="Sygdom","-",$D21="optagelse",_xlfn.IFS(R20="Planmæssigt","-",R20="Forsinket",Datasheet!$B$88,R20="Ingen servering",Datasheet!$B$88,R20="Pause ikke afholdt",Datasheet!$B$88)) -> - | S22: =_xlfn.IFS($T$4=Datasheet!$B$49,"-",$D21="Fri","-",$D21="Forbered/afrig tid","-",$D21="Rejsetid","-",$D21="Rejsetid +50%","-",$D21="Sygdom","-",$D21="optagelse",_xlfn.IFS(S20="Planmæssigt","-",S20="Forsinket",Datasheet!$B$88,S20="Ingen servering",Datasheet!$B$88,S20="Pause ikke afholdt",Datasheet!$B$88)) -> - | T22: =IF($T9=Datasheet!$B$49,"-",(_xlfn.IFS($D21="Fri","-",$D21="rejsetid","-",$D21="Rejsetid +50%","-",$D21="Sygdom","-",$D21="Forbered/afrig tid","-",$D21="Optagelse",(IF(T20="Ingen rabat","-",(SUM(H23:S23))))))) -> - | U22: =IF(OR(Q21<>"-",R21<>"-",S21<>"-",D21="Fri"),"-",_xlfn.IFS(U21="-","-",U21="Morgen",86.1,U21="Morgen+Frokost",258.3,U21="Frokost el. Aften",172.2,U21="Frokost+Aften", 344.4,U21="Fuld kost",420.5)) -> - | Y22: =SUM(Q22:S22)+SUM(U22) -> 0
H23: =IF($D21="Fri","-",(IF(H20>0,H22*H20,"-"))) -> 0 | I23: =IF(AND(I20<>"-",I22<>"-"),I22*I20,"-") -> 0 | J23: =IF(AND(J20<>"-",J22<>"-"),J22*J20,"-") -> 0 | K23: 0 | L23: 0 | M23: =IF(M22<>"-",M22*M21,"-") -> - | N23: =IF(AND(N20<>"-",N22<>"-"),N22*N20,"-") -> 0 | O23: =IF(AND(O20<>"-",O22<>"-"),O22*O20,"-") -> 0 | P23: =IF(AND(P20<>"-",P22<>"-"),P22*P20,"-") -> 0 | Q23: =_xlfn.IFS($T$4=Datasheet!$B$49,"-",$D21="Fri","-",$D21="Forbered/afrig tid","-",$D21="Rejsetid","-",$D21="Rejsetid +50%","-",$D21="Sygdom","-",$D21="optagelse",_xlfn.IFS(Q20="Planmæssigt","-",Q20="Forsinket","-",Q20="Ingen servering","-",Q20="Pause ikke afholdt",($I22*0.75))) -> - | R23: =_xlfn.IFS($T$4=Datasheet!$B$49,"-",$D21="Fri","-",$D21="Forbered/afrig tid","-",$D21="Rejsetid","-",$D21="Rejsetid +50%","-",$D21="Sygdom","-",$D21="optagelse",_xlfn.IFS(R20="Planmæssigt","-",R20="Forsinket","-",R20="Ingen servering","-",R20="Pause ikke afholdt",($J22*0.5))) -> - | S23: =_xlfn.IFS($T$4=Datasheet!$B$49,"-",$D21="Fri","-",$D21="Forbered/afrig tid","-",$D21="Rejsetid","-",$D21="Rejsetid +50%","-",$D21="Sygdom","-",$D21="optagelse",_xlfn.IFS(S20="Planmæssigt","-",S20="Forsinket","-",S20="Ingen servering","-",S20="Pause ikke afholdt",(K22*0.25))) -> - | T23: =_xlfn.IFS($D21="Fri","-",$D21="rejsetid","-",$D21="Rejsetid +50%","-",$D21="Sygdom","-",$D21="Optagelse",(_xlfn.IFS(T22="-","-",T22=0,"-",T22<>0,T22*T21)),$D21="Forbered/afrig tid","-") -> - | U23: - | W23: =_xlfn.IFS($D21="Fri",0,$D21="optagelse",(_xlfn.IFS(SUM(H23:T23)=0,0,SUM(H23:T23)>grundløn,SUM(H23:T23),SUM(H23:T23)<=grundløn,grundløn)),$D21="Forbered/afrig tid",(IF(SUM(H23:T23)=0,0,SUM(H23:T23))),$D21="rejsetid",(IF(SUM(H23:T23)=0,0,SUM(H23:T23))),$D21="rejsetid +50%",(IF(SUM(H23:T23)=0,0,SUM(H23:T23))),$D21="sygdom",(IF(SUM(H23:T23)=0,0,SUM(H23:T23)))) -> 0
B25: =B20+1 -> 2024-03-13 | C25: =WEEKDAY(B25,1) -> 1900-01-04 | D25: 08:00:00 | E25: 18:00:00 | G25: =_xlfn.IFS($D26="Fri","-",$D26="Sygdom","-",$D26<>"Fri",IF(AND(E25>0,D25>0),MOD((HOUR(E25)-HOUR(D25))+(MINUTE(E25)-MINUTE(D25))/60,24),0/24)) -> 10 | H25: =IF($T$4=Datasheet!$B$49,(IF(G25=0,0,(IF(AND(G25>0,G25<=4),4,(IF(AND(G25>=4,G25<=8,G25<>0),G25,8)))))),_xlfn.IFS($D26="Fri","-",$D26="Sygdom","4",$D26="Optagelse",(IF(G25>0,8,0)),$D26="Forbered/afrig tid",(IF(G25=0,0,(IF(AND(G25>0,G25<=4),4,(IF(AND(G25>=4,G25<=8,G25<>0),G25,8)))))),$D26="Rejsetid",(IF(AND(G25>0,G25<=4),4,(IF(G25>=4,G25,0)))),$D26="Rejsetid +50%",(IF(AND(G25>0,G25<=4),4,(IF(G25>=4,G25,0)))))) -> 8 | I25: =IF(OR(D26="Optagelse",D26="Forbered/afrig tid"),IF(G25>8,(G25-H25-J25-K25-L25),0),"-") -> 2 | J25: =IF(OR($D26="Optagelse",$D26="Forbered/afrig tid"),IF(G25>10,(G25-H25-K25-L25)-2,0),"-") -> 0 | K25: =IF(OR($D26="Optagelse",$D26="Forbered/afrig tid"),IF(G25>12,(G25-H25-L25)-4,0),"-") -> 0 | L25: =IF(OR(D26="Optagelse",$D26="Forbered/afrig tid"),IF(G25>13,(G25-H25)-5,0),"-") -> 0 | M25: 0.75 | N25: =IF($D26="Optagelse",ColTime(D25,E25,Datasheet!$C$82,Datasheet!$C$83)*24,"-") -> 0 | O25: =IF($D26="Optagelse",ColTime(D25,E25,Datasheet!$C$83,Datasheet!$C$84)*24,"-") -> 0 | P25: 0 | Q25: Forsinket | R25: Planmæssigt | S25: Planmæssigt | T25: Rabat A | U25: Ingen diæt
C26: Helligdag? | D26: Optagelse | H26: =IF($T$4=Datasheet!$B$49,"Timeløn",(IF(D26="Rejsetid +50%","Timeløn +50%",(IF(D26="Fri","-","Timeløn"))))) -> Timeløn | I26: =IF($T$4=Datasheet!$B$49,Datasheet!$C$65,(_xlfn.IFS($D26="Fri","-",$D26="Sygdom","-",$D26="Rejsetid","-",D26="Rejsetid +50%","-",D26="Forbered/afrig tid",Datasheet!$C$56,D26="Optagelse",Datasheet!$C$59))) -> 0.25 | J26: =IF($T$4=Datasheet!$B$49,"Rate 1",_xlfn.IFS($D26="Fri","-",$D26="Sygdom","-",$D26="Rejsetid","-",D26="Rejsetid +50%","-",D26="Rejsetid","-",D26="Forbered/afrig tid",Datasheet!$D$56,D26="Optagelse",Datasheet!$D$59)) -> 1 | K26: =IF($T$4=Datasheet!$B$49,"Rate 1",_xlfn.IFS(D26="Fri","-",D26="Rejsetid","-",$D26="Sygdom","-",$D26="Rejsetid","-",D26="Rejsetid +50%","-",D26="Forbered/afrig tid",Datasheet!$E$56,D26="Optagelse",Datasheet!$E$59)) -> 1.5 | L26: =IF($T$4=Datasheet!$B$49,"Rate 2",_xlfn.IFS($D26="Fri","-",$D26="Sygdom","-",$D26="Rejsetid","-",D26="Rejsetid +50%","-",D26="Rejsetid","-",D26="Forbered/afrig tid",Datasheet!$E$56,D26="Optagelse",Datasheet!$F$59)) -> 2 | M26: =IF(AND($C27="Ja",OR($D26="optagelse",$D26="Forbered/afrig tid")),_xlfn.IFS($D26="optagelse",$G25+$P25,$D26="Forbered/afrig tid",$G25),_xlfn.IFS($D26="Fri",0,$D26="rejsetid",0,$D26="rejsetid +50%",0,$D26="sygdom",0,$C25=1,IF(AND($C25=1,$D26="optagelse"),$G25+$P25,G25),$C25=7,IF(AND($C25=7,$D26="optagelse"),$G25+$P25,$G25),$C25=2,IF(($D25*24)<=6,ColTime($D25,6,Datasheet!$C$83,Datasheet!$C$84)*24,0),$C25=3,0,$C25=4,0,$C25=5,0,$C25=6,IF(($D25*24)>6,ColTime($D25,$E25,Datasheet!$C$83,Datasheet!$C$84)*24,0))) -> 0 | N26: =IF($T$4=Datasheet!$B$49,"-",IF($D26="Optagelse","Timetillæg","-")) -> Timetillæg | O26: =IF($T$4=Datasheet!$B$49,"-",IF($D26="Optagelse","Timetillæg","-")) -> Timetillæg | P26: =IF($T$4=Datasheet!$B$49,"-",IF($D26="Optagelse",Datasheet!$B$77,"-")) -> 0.75 | Q26: =(_xlfn.IFS($T$4=Datasheet!$B$49,"-",$D26="Fri","-",$D26="Forbered/afrig tid","-",$D26="Rejsetid","-",$D26="Rejsetid +50%","-",$D26="Sygdom","-",$D26="optagelse",(_xlfn.IFS(Q25="Planmæssigt","-",Q25="Forsinket","Diæt",Q25="Ingen servering","Diæt",Q25="Pause ikke afholdt","Diæt + 45min")))) -> Diæt | R26: =_xlfn.IFS($T$4=Datasheet!$B$49,"-",$D26="Fri","-",$D26="Forbered/afrig tid","-",$D26="Rejsetid","-",$D26="Rejsetid +50%","-",$D26="Sygdom","-",$D26="optagelse",(_xlfn.IFS(R25="Planmæssigt","-",R25="Forsinket","Diæt",R25="Ingen servering","Diæt",R25="Pause ikke afholdt","Diæt + 30min"))) -> - | S26: =_xlfn.IFS($T$4=Datasheet!$B$49,"-",$D26="Fri","-",$D26="Forbered/afrig tid","-",$D26="Rejsetid","-",$D26="Rejsetid +50%","-",$D26="Sygdom","-",$D26="optagelse",(_xlfn.IFS(S25="Planmæssigt","-",S25="Forsinket","Diæt",S25="Ingen servering","Diæt",S25="Pause ikke afholdt","Diæt + 15min"))) -> - | T26: =IF($T14=Datasheet!$B$49,"-",IF(D26="Optagelse",_xlfn.IFS(T25="Ingen rabat","-",T25="Rabat A",Datasheet!$B$96,T25="Rabat B",Datasheet!$B$97),"-")) -> -0.1 | U26: =IF(U25="Ingen diæt","-",U25) -> -
C27: Nej | H27: =IF($T$4=Datasheet!$B$49,grundløn/8,(_xlfn.IFS($D26="Fri","-",$D26="Optagelse",grundløn/8,$D26="rejsetid",grundløn/8,$D26="rejsetid +50%",(grundløn/8)*1.5,$D26="Forbered/afrig tid",grundløn/8,$D26="Sygdom",grundløn/8))) -> 0 | I27: =IF($T$4=Datasheet!$B$49,Datasheet!$C$66,_xlfn.IFS($D26="Fri","-",$D26="Sygdom","-",$D26="Rejsetid","-",D26="Rejsetid +50%","-",$D26="Optagelse",grundløn/8*$I26+grundløn/8,$D26="rejsetid","-",$D26="Forbered/afrig tid",grundløn/8*$I26+grundløn/8)) -> 0 | J27: =IF($T$4=Datasheet!$B$49,Datasheet!$C$66,_xlfn.IFS($D26="Fri","-",$D26="Sygdom","-",$D26="Rejsetid","-",D26="Rejsetid +50%","-",$D26="Optagelse",grundløn/8*$J26+grundløn/8,$D26="rejsetid","-",$D26="Forbered/afrig tid",grundløn/8*$J26+grundløn/8)) -> 0 | K27: =IF($T$4=Datasheet!$B$49,Datasheet!$C$66,_xlfn.IFS($D26="Fri","-",$D26="Sygdom","-",$D26="Rejsetid","-",D26="Rejsetid +50%","-",$D26="Optagelse",grundløn/8*$K26+grundløn/8,$D26="rejsetid","-",$D26="Forbered/afrig tid",grundløn/8*$K26+grundløn/8)) -> 0 | L27: =IF($T$4=Datasheet!$B$49,Datasheet!$D$66,_xlfn.IFS($D26="Fri","-",$D26="Sygdom","-",$D26="Rejsetid","-",D26="Rejsetid +50%","-",$D26="Optagelse",grundløn/8*$L26+grundløn/8,$D26="rejsetid","-",$D26="Forbered/afrig tid",grundløn/8*$L26+grundløn/8)) -> 0 | M27: =IF(AND(M26<>0,M26<>"-"),H27*M25,"-") -> - | N27: =IF($T$4=Datasheet!$B$49,"-",IF($D26="Optagelse",Datasheet!$B$82,"-")) -> 100 | O27: =IF($T$4=Datasheet!$B$49,"-",IF($D26="Optagelse",Datasheet!$B$83,"-")) -> 200 | P27: =IF($T$4=Datasheet!$B$49,"-",IF(D26="Optagelse",((grundløn/8)*P26),"-")) -> 0 | Q27: =_xlfn.IFS($T$4=Datasheet!$B$49,"-",$D26="Fri","-",$D26="Forbered/afrig tid","-",$D26="Rejsetid","-",$D26="Rejsetid +50%","-",$D26="Sygdom","-",$D26="optagelse",_xlfn.IFS(Q25="Planmæssigt","-",Q25="Forsinket",Datasheet!$B$88,Q25="Ingen servering",Datasheet!$B$88,Q25="Pause ikke afholdt",Datasheet!$B$88)) -> 172.2 | R27: =_xlfn.IFS($T$4=Datasheet!$B$49,"-",$D26="Fri","-",$D26="Forbered/afrig tid","-",$D26="Rejsetid","-",$D26="Rejsetid +50%","-",$D26="Sygdom","-",$D26="optagelse",_xlfn.IFS(R25="Planmæssigt","-",R25="Forsinket",Datasheet!$B$88,R25="Ingen servering",Datasheet!$B$88,R25="Pause ikke afholdt",Datasheet!$B$88)) -> - | S27: =_xlfn.IFS($T$4=Datasheet!$B$49,"-",$D26="Fri","-",$D26="Forbered/afrig tid","-",$D26="Rejsetid","-",$D26="Rejsetid +50%","-",$D26="Sygdom","-",$D26="optagelse",_xlfn.IFS(S25="Planmæssigt","-",S25="Forsinket",Datasheet!$B$88,S25="Ingen servering",Datasheet!$B$88,S25="Pause ikke afholdt",Datasheet!$B$88)) -> - | T27: =IF($T14=Datasheet!$B$49,"-",(_xlfn.IFS($D26="Fri","-",$D26="rejsetid","-",$D26="Rejsetid +50%","-",$D26="Sygdom","-",$D26="Forbered/afrig tid","-",$D26="Optagelse",(IF(T25="Ingen rabat","-",(SUM(H28:S28))))))) -> 0 | U27: =IF(OR($Q26<>"-",$R26<>"-",$S26<>"-",D26="Fri"),"-",_xlfn.IFS(U26="-","-",U26="Morgen",86.1,U26="Morgen+Frokost",258.3,U26="Frokost el. Aften",172.2,U26="Frokost+Aften", 344.4,U26="Fuld kost",420.5)) -> - | Y27: =SUM(Q27:S27)+SUM(U27) -> 172.2
H28: =IF($D26="Fri","-",(IF(H25>0,H27*H25,"-"))) -> 0 | I28: =IF(AND(I25<>"-",I27<>"-"),I27*I25,"-") -> 0 | J28: =IF(AND(J25<>"-",J27<>"-"),J27*J25,"-") -> 0 | K28: 0 | L28: 0 | M28: =IF(M27<>"-",M27*M26,"-") -> - | N28: =IF(AND(N25<>"-",N27<>"-"),N27*N25,"-") -> 0 | O28: =IF(AND(O25<>"-",O27<>"-"),O27*O25,"-") -> 0 | P28: =IF(AND(P25<>"-",P27<>"-"),P27*P25,"-") -> 0 | Q28: =_xlfn.IFS($T$4=Datasheet!$B$49,"-",$D26="Fri","-",$D26="Forbered/afrig tid","-",$D26="Rejsetid","-",$D26="Rejsetid +50%","-",$D26="Sygdom","-",$D26="optagelse",_xlfn.IFS(Q25="Planmæssigt","-",Q25="Forsinket","-",Q25="Ingen servering","-",Q25="Pause ikke afholdt",($I27*0.75))) -> - | R28: =_xlfn.IFS($T$4=Datasheet!$B$49,"-",$D26="Fri","-",$D26="Forbered/afrig tid","-",$D26="Rejsetid","-",$D26="Rejsetid +50%","-",$D26="Sygdom","-",$D26="optagelse",_xlfn.IFS(R25="Planmæssigt","-",R25="Forsinket","-",R25="Ingen servering","-",R25="Pause ikke afholdt",($J27*0.5))) -> - | S28: =_xlfn.IFS($T$4=Datasheet!$B$49,"-",$D26="Fri","-",$D26="Forbered/afrig tid","-",$D26="Rejsetid","-",$D26="Rejsetid +50%","-",$D26="Sygdom","-",$D26="optagelse",_xlfn.IFS(S25="Planmæssigt","-",S25="Forsinket","-",S25="Ingen servering","-",S25="Pause ikke afholdt",(K27*0.25))) -> - | T28: =_xlfn.IFS($D26="Fri","-",$D26="rejsetid","-",$D26="Rejsetid +50%","-",$D26="Sygdom","-",$D26="Optagelse",(_xlfn.IFS(T27="-","-",T27=0,"-",T27<>0,T27*T26)),$D26="Forbered/afrig tid","-") -> - | U28: - | W28: =_xlfn.IFS($D26="Fri",0,$D26="optagelse",(_xlfn.IFS(SUM(H28:T28)=0,0,SUM(H28:T28)>grundløn,SUM(H28:T28),SUM(H28:T28)<=grundløn,grundløn)),$D26="Forbered/afrig tid",(IF(SUM(H28:T28)=0,0,SUM(H28:T28))),$D26="rejsetid",(IF(SUM(H28:T28)=0,0,SUM(H28:T28))),$D26="rejsetid +50%",(IF(SUM(H28:T28)=0,0,SUM(H28:T28))),$D26="sygdom",(IF(SUM(H28:T28)=0,0,SUM(H28:T28)))) -> 0
B30: =B25+1 -> 2024-03-14 | C30: =WEEKDAY(B30,1) -> 1900-01-05 | D30: 08:00:00 | E30: 18:00:00 | G30: =_xlfn.IFS($D31="Fri","-",$D31="Sygdom","-",$D31<>"Fri",IF(AND(E30>0,D30>0),MOD((HOUR(E30)-HOUR(D30))+(MINUTE(E30)-MINUTE(D30))/60,24),0/24)) -> 10 | H30: =IF($T$4=Datasheet!$B$49,(IF(G30=0,0,(IF(AND(G30>0,G30<=4),4,(IF(AND(G30>=4,G30<=8,G30<>0),G30,8)))))),_xlfn.IFS($D31="Fri","-",$D31="Sygdom","4",$D31="Optagelse",(IF(G30>0,8,0)),$D31="Forbered/afrig tid",(IF(G30=0,0,(IF(AND(G30>0,G30<=4),4,(IF(AND(G30>=4,G30<=8,G30<>0),G30,8)))))),$D31="Rejsetid",(IF(AND(G30>0,G30<=4),4,(IF(G30>=4,G30,0)))),$D31="Rejsetid +50%",(IF(AND(G30>0,G30<=4),4,(IF(G30>=4,G30,0)))))) -> 8 | I30: =IF(OR(D31="Optagelse",D31="Forbered/afrig tid"),IF(G30>8,(G30-H30-J30-K30-L30),0),"-") -> 2 | J30: =IF(OR($D31="Optagelse",$D31="Forbered/afrig tid"),IF(G30>10,(G30-H30-K30-L30)-2,0),"-") -> 0 | K30: =IF(OR($D31="Optagelse",$D31="Forbered/afrig tid"),IF(G30>12,(G30-H30-L30)-4,0),"-") -> 0 | L30: =IF(OR(D31="Optagelse",$D31="Forbered/afrig tid"),IF(G30>13,(G30-H30)-5,0),"-") -> 0 | M30: 0.75 | N30: =IF($D31="Optagelse",ColTime(D30,E30,Datasheet!$C$82,Datasheet!$C$83)*24,"-") -> 0 | O30: =IF($D31="Optagelse",ColTime(D30,E30,Datasheet!$C$83,Datasheet!$C$84)*24,"-") -> 0 | P30: 0 | Q30: Planmæssigt | R30: Planmæssigt | S30: Planmæssigt | T30: Rabat A | U30: Ingen diæt
C31: Helligdag? | D31: Optagelse | H31: =IF($T$4=Datasheet!$B$49,"Timeløn",(IF(D31="Rejsetid +50%","Timeløn +50%",(IF(D31="Fri","-","Timeløn"))))) -> Timeløn | I31: =IF($T$4=Datasheet!$B$49,Datasheet!$C$65,(_xlfn.IFS($D31="Fri","-",$D31="Sygdom","-",$D31="Rejsetid","-",D31="Rejsetid +50%","-",D31="Forbered/afrig tid",Datasheet!$C$56,D31="Optagelse",Datasheet!$C$59))) -> 0.25 | J31: =IF($T$4=Datasheet!$B$49,"Rate 1",_xlfn.IFS($D31="Fri","-",$D31="Sygdom","-",$D31="Rejsetid","-",D31="Rejsetid +50%","-",D31="Rejsetid","-",D31="Forbered/afrig tid",Datasheet!$D$56,D31="Optagelse",Datasheet!$D$59)) -> 1 | K31: =IF($T$4=Datasheet!$B$49,"Rate 1",_xlfn.IFS(D31="Fri","-",D31="Rejsetid","-",$D31="Sygdom","-",$D31="Rejsetid","-",D31="Rejsetid +50%","-",D31="Forbered/afrig tid",Datasheet!$E$56,D31="Optagelse",Datasheet!$E$59)) -> 1.5 | L31: =IF($T$4=Datasheet!$B$49,"Rate 2",_xlfn.IFS($D31="Fri","-",$D31="Sygdom","-",$D31="Rejsetid","-",D31="Rejsetid +50%","-",D31="Rejsetid","-",D31="Forbered/afrig tid",Datasheet!$E$56,D31="Optagelse",Datasheet!$F$59)) -> 2 | M31: =IF(AND($C32="Ja",OR($D31="optagelse",$D31="Forbered/afrig tid")),_xlfn.IFS($D31="optagelse",$G30+$P30,$D31="Forbered/afrig tid",$G30),_xlfn.IFS($D31="Fri",0,$D31="rejsetid",0,$D31="rejsetid +50%",0,$D31="sygdom",0,$C30=1,IF(AND($C30=1,$D31="optagelse"),$G30+$P30,G30),$C30=7,IF(AND($C30=7,$D31="optagelse"),$G30+$P30,$G30),$C30=2,IF(($D30*24)<=6,ColTime($D30,6,Datasheet!$C$83,Datasheet!$C$84)*24,0),$C30=3,0,$C30=4,0,$C30=5,0,$C30=6,IF(($D30*24)>6,ColTime($D30,$E30,Datasheet!$C$83,Datasheet!$C$84)*24,0))) -> 0 | N31: =IF($T$4=Datasheet!$B$49,"-",IF($D31="Optagelse","Timetillæg","-")) -> Timetillæg | O31: =IF($T$4=Datasheet!$B$49,"-",IF($D31="Optagelse","Timetillæg","-")) -> Timetillæg | P31: =IF($T$4=Datasheet!$B$49,"-",IF($D31="Optagelse",Datasheet!$B$77,"-")) -> 0.75 | Q31: =(_xlfn.IFS($T$4=Datasheet!$B$49,"-",$D31="Fri","-",$D31="Forbered/afrig tid","-",$D31="Rejsetid","-",$D31="Rejsetid +50%","-",$D31="Sygdom","-",$D31="optagelse",(_xlfn.IFS(Q30="Planmæssigt","-",Q30="Forsinket","Diæt",Q30="Ingen servering","Diæt",Q30="Pause ikke afholdt","Diæt + 45min")))) -> - | R31: =_xlfn.IFS($T$4=Datasheet!$B$49,"-",$D31="Fri","-",$D31="Forbered/afrig tid","-",$D31="Rejsetid","-",$D31="Rejsetid +50%","-",$D31="Sygdom","-",$D31="optagelse",(_xlfn.IFS(R30="Planmæssigt","-",R30="Forsinket","Diæt",R30="Ingen servering","Diæt",R30="Pause ikke afholdt","Diæt + 30min"))) -> - | S31: =_xlfn.IFS($T$4=Datasheet!$B$49,"-",$D31="Fri","-",$D31="Forbered/afrig tid","-",$D31="Rejsetid","-",$D31="Rejsetid +50%","-",$D31="Sygdom","-",$D31="optagelse",(_xlfn.IFS(S30="Planmæssigt","-",S30="Forsinket","Diæt",S30="Ingen servering","Diæt",S30="Pause ikke afholdt","Diæt + 15min"))) -> - | T31: =IF($T19=Datasheet!$B$49,"-",IF(D31="Optagelse",_xlfn.IFS(T30="Ingen rabat","-",T30="Rabat A",Datasheet!$B$96,T30="Rabat B",Datasheet!$B$97),"-")) -> -0.1 | U31: =IF(U30="Ingen diæt","-",U30) -> -
C32: Nej | H32: =IF($T$4=Datasheet!$B$49,grundløn/8,(_xlfn.IFS($D31="Fri","-",$D31="Optagelse",grundløn/8,$D31="rejsetid",grundløn/8,$D31="rejsetid +50%",(grundløn/8)*1.5,$D31="Forbered/afrig tid",grundløn/8,$D31="Sygdom",grundløn/8))) -> 0 | I32: =IF($T$4=Datasheet!$B$49,Datasheet!$C$66,_xlfn.IFS($D31="Fri","-",$D31="Sygdom","-",$D31="Rejsetid","-",D31="Rejsetid +50%","-",$D31="Optagelse",grundløn/8*$I31+grundløn/8,$D31="rejsetid","-",$D31="Forbered/afrig tid",grundløn/8*$I31+grundløn/8)) -> 0 | J32: =IF($T$4=Datasheet!$B$49,Datasheet!$C$66,_xlfn.IFS($D31="Fri","-",$D31="Sygdom","-",$D31="Rejsetid","-",D31="Rejsetid +50%","-",$D31="Optagelse",grundløn/8*$J31+grundløn/8,$D31="rejsetid","-",$D31="Forbered/afrig tid",grundløn/8*$J31+grundløn/8)) -> 0 | K32: =IF($T$4=Datasheet!$B$49,Datasheet!$C$66,_xlfn.IFS($D31="Fri","-",$D31="Sygdom","-",$D31="Rejsetid","-",D31="Rejsetid +50%","-",$D31="Optagelse",grundløn/8*$K31+grundløn/8,$D31="rejsetid","-",$D31="Forbered/afrig tid",grundløn/8*$K31+grundløn/8)) -> 0 | L32: =IF($T$4=Datasheet!$B$49,Datasheet!$D$66,_xlfn.IFS($D31="Fri","-",$D31="Sygdom","-",$D31="Rejsetid","-",D31="Rejsetid +50%","-",$D31="Optagelse",grundløn/8*$L31+grundløn/8,$D31="rejsetid","-",$D31="Forbered/afrig tid",grundløn/8*$L31+grundløn/8)) -> 0 | M32: =IF(AND(M31<>0,M31<>"-"),H32*M30,"-") -> - | N32: =IF($T$4=Datasheet!$B$49,"-",IF($D31="Optagelse",Datasheet!$B$82,"-")) -> 100 | O32: =IF($T$4=Datasheet!$B$49,"-",IF($D31="Optagelse",Datasheet!$B$83,"-")) -> 200 | P32: =IF($T$4=Datasheet!$B$49,"-",IF(D31="Optagelse",((grundløn/8)*P31),"-")) -> 0 | Q32: =_xlfn.IFS($T$4=Datasheet!$B$49,"-",$D31="Fri","-",$D31="Forbered/afrig tid","-",$D31="Rejsetid","-",$D31="Rejsetid +50%","-",$D31="Sygdom","-",$D31="optagelse",_xlfn.IFS(Q30="Planmæssigt","-",Q30="Forsinket",Datasheet!$B$88,Q30="Ingen servering",Datasheet!$B$88,Q30="Pause ikke afholdt",Datasheet!$B$88)) -> - | R32: =_xlfn.IFS($T$4=Datasheet!$B$49,"-",$D31="Fri","-",$D31="Forbered/afrig tid","-",$D31="Rejsetid","-",$D31="Rejsetid +50%","-",$D31="Sygdom","-",$D31="optagelse",_xlfn.IFS(R30="Planmæssigt","-",R30="Forsinket",Datasheet!$B$88,R30="Ingen servering",Datasheet!$B$88,R30="Pause ikke afholdt",Datasheet!$B$88)) -> - | S32: =_xlfn.IFS($T$4=Datasheet!$B$49,"-",$D31="Fri","-",$D31="Forbered/afrig tid","-",$D31="Rejsetid","-",$D31="Rejsetid +50%","-",$D31="Sygdom","-",$D31="optagelse",_xlfn.IFS(S30="Planmæssigt","-",S30="Forsinket",Datasheet!$B$88,S30="Ingen servering",Datasheet!$B$88,S30="Pause ikke afholdt",Datasheet!$B$88)) -> - | T32: =IF($T19=Datasheet!$B$49,"-",(_xlfn.IFS($D31="Fri","-",$D31="rejsetid","-",$D31="Rejsetid +50%","-",$D31="Sygdom","-",$D31="Forbered/afrig tid","-",$D31="Optagelse",(IF(T30="Ingen rabat","-",(SUM(H33:S33))))))) -> 0 | U32: =IF(OR($Q31<>"-",$R31<>"-",$S31<>"-",D31="Fri"),"-",_xlfn.IFS(U31="-","-",U31="Morgen",86.1,U31="Morgen+Frokost",258.3,U31="Frokost el. Aften",172.2,U31="Frokost+Aften", 344.4,U31="Fuld kost",420.5)) -> - | Y32: =SUM(Q32:S32)+SUM(U32) -> 0
H33: =IF($D31="Fri","-",(IF(H30>0,H32*H30,"-"))) -> 0 | I33: =IF(AND(I30<>"-",I32<>"-"),I32*I30,"-") -> 0 | J33: =IF(AND(J30<>"-",J32<>"-"),J32*J30,"-") -> 0 | K33: 0 | L33: 0 | M33: =IF(M32<>"-",M32*M31,"-") -> - | N33: =IF(AND(N30<>"-",N32<>"-"),N32*N30,"-") -> 0 | O33: =IF(AND(O30<>"-",O32<>"-"),O32*O30,"-") -> 0 | P33: =IF(AND(P30<>"-",P32<>"-"),P32*P30,"-") -> 0 | Q33: =_xlfn.IFS($T$4=Datasheet!$B$49,"-",$D31="Fri","-",$D31="Forbered/afrig tid","-",$D31="Rejsetid","-",$D31="Rejsetid +50%","-",$D31="Sygdom","-",$D31="optagelse",_xlfn.IFS(Q30="Planmæssigt","-",Q30="Forsinket","-",Q30="Ingen servering","-",Q30="Pause ikke afholdt",($I32*0.75))) -> - | R33: =_xlfn.IFS($T$4=Datasheet!$B$49,"-",$D31="Fri","-",$D31="Forbered/afrig tid","-",$D31="Rejsetid","-",$D31="Rejsetid +50%","-",$D31="Sygdom","-",$D31="optagelse",_xlfn.IFS(R30="Planmæssigt","-",R30="Forsinket","-",R30="Ingen servering","-",R30="Pause ikke afholdt",($J32*0.5))) -> - | S33: =_xlfn.IFS($T$4=Datasheet!$B$49,"-",$D31="Fri","-",$D31="Forbered/afrig tid","-",$D31="Rejsetid","-",$D31="Rejsetid +50%","-",$D31="Sygdom","-",$D31="optagelse",_xlfn.IFS(S30="Planmæssigt","-",S30="Forsinket","-",S30="Ingen servering","-",S30="Pause ikke afholdt",(K32*0.25))) -> - | T33: =_xlfn.IFS($D31="Fri","-",$D31="rejsetid","-",$D31="Rejsetid +50%","-",$D31="Sygdom","-",$D31="Optagelse",(_xlfn.IFS(T32="-","-",T32=0,"-",T32<>0,T32*T31)),$D31="Forbered/afrig tid","-") -> - | U33: - | W33: =_xlfn.IFS($D31="Fri",0,$D31="optagelse",(_xlfn.IFS(SUM(H33:T33)=0,0,SUM(H33:T33)>grundløn,SUM(H33:T33),SUM(H33:T33)<=grundløn,grundløn)),$D31="Forbered/afrig tid",(IF(SUM(H33:T33)=0,0,SUM(H33:T33))),$D31="rejsetid",(IF(SUM(H33:T33)=0,0,SUM(H33:T33))),$D31="rejsetid +50%",(IF(SUM(H33:T33)=0,0,SUM(H33:T33))),$D31="sygdom",(IF(SUM(H33:T33)=0,0,SUM(H33:T33)))) -> 0
B35: =B30+1 -> 2024-03-15 | C35: =WEEKDAY(B35,1) -> 1900-01-06 | D35: 08:00:00 | E35: 16:00:00 | G35: =_xlfn.IFS($D36="Fri","-",$D36="Sygdom","-",$D36<>"Fri",IF(AND(E35>0,D35>0),MOD((HOUR(E35)-HOUR(D35))+(MINUTE(E35)-MINUTE(D35))/60,24),0/24)) -> - | H35: =IF($T$4=Datasheet!$B$49,(IF(G35=0,0,(IF(AND(G35>0,G35<=4),4,(IF(AND(G35>=4,G35<=8,G35<>0),G35,8)))))),_xlfn.IFS($D36="Fri","-",$D36="Sygdom","4",$D36="Optagelse",(IF(G35>0,8,0)),$D36="Forbered/afrig tid",(IF(G35=0,0,(IF(AND(G35>0,G35<=4),4,(IF(AND(G35>=4,G35<=8,G35<>0),G35,8)))))),$D36="Rejsetid",(IF(AND(G35>0,G35<=4),4,(IF(G35>=4,G35,0)))),$D36="Rejsetid +50%",(IF(AND(G35>0,G35<=4),4,(IF(G35>=4,G35,0)))))) -> - | I35: =IF(OR(D36="Optagelse",D36="Forbered/afrig tid"),IF(G35>8,(G35-H35-J35-K35-L35),0),"-") -> - | J35: =IF(OR($D36="Optagelse",$D36="Forbered/afrig tid"),IF(G35>10,(G35-H35-K35-L35)-2,0),"-") -> - | K35: =IF(OR($D36="Optagelse",$D36="Forbered/afrig tid"),IF(G35>12,(G35-H35-L35)-4,0),"-") -> - | L35: =IF(OR(D36="Optagelse",$D36="Forbered/afrig tid"),IF(G35>13,(G35-H35)-5,0),"-") -> - | M35: 0.75 | N35: =IF($D36="Optagelse",ColTime(D35,E35,Datasheet!$C$82,Datasheet!$C$83)*24,"-") -> - | O35: =IF($D36="Optagelse",ColTime(D35,E35,Datasheet!$C$83,Datasheet!$C$84)*24,"-") -> - | P35: 0 | Q35: Forsinket | R35: Planmæssigt | S35: Planmæssigt | T35: Ingen rabat | U35: Ingen diæt
C36: Helligdag? | D36: Fri | H36: =IF($T$4=Datasheet!$B$49,"Timeløn",(IF(D36="Rejsetid +50%","Timeløn +50%",(IF(D36="Fri","-","Timeløn"))))) -> - | I36: =IF($T$4=Datasheet!$B$49,Datasheet!$C$65,(_xlfn.IFS($D36="Fri","-",$D36="Sygdom","-",$D36="Rejsetid","-",D36="Rejsetid +50%","-",D36="Forbered/afrig tid",Datasheet!$C$56,D36="Optagelse",Datasheet!$C$59))) -> - | J36: =IF($T$4=Datasheet!$B$49,"Rate 1",_xlfn.IFS($D36="Fri","-",$D36="Sygdom","-",$D36="Rejsetid","-",D36="Rejsetid +50%","-",D36="Rejsetid","-",D36="Forbered/afrig tid",Datasheet!$D$56,D36="Optagelse",Datasheet!$D$59)) -> - | K36: =IF($T$4=Datasheet!$B$49,"Rate 1",_xlfn.IFS(D36="Fri","-",D36="Rejsetid","-",$D36="Sygdom","-",$D36="Rejsetid","-",D36="Rejsetid +50%","-",D36="Forbered/afrig tid",Datasheet!$E$56,D36="Optagelse",Datasheet!$E$59)) -> - | L36: =IF($T$4=Datasheet!$B$49,"Rate 2",_xlfn.IFS($D36="Fri","-",$D36="Sygdom","-",$D36="Rejsetid","-",D36="Rejsetid +50%","-",D36="Rejsetid","-",D36="Forbered/afrig tid",Datasheet!$E$56,D36="Optagelse",Datasheet!$F$59)) -> - | M36: =IF(AND($C37="Ja",OR($D36="optagelse",$D36="Forbered/afrig tid")),_xlfn.IFS($D36="optagelse",$G35+$P35,$D36="Forbered/afrig tid",$G35),_xlfn.IFS($D36="Fri",0,$D36="rejsetid",0,$D36="rejsetid +50%",0,$D36="sygdom",0,$C35=1,IF(AND($C35=1,$D36="optagelse"),$G35+$P35,G35),$C35=7,IF(AND($C35=7,$D36="optagelse"),$G35+$P35,$G35),$C35=2,IF(($D35*24)<=6,ColTime($D35,6,Datasheet!$C$83,Datasheet!$C$84)*24,0),$C35=3,0,$C35=4,0,$C35=5,0,$C35=6,IF(($D35*24)>6,ColTime($D35,$E35,Datasheet!$C$83,Datasheet!$C$84)*24,0))) -> 0 | N36: =IF($T$4=Datasheet!$B$49,"-",IF($D36="Optagelse","Timetillæg","-")) -> - | O36: =IF($T$4=Datasheet!$B$49,"-",IF($D36="Optagelse","Timetillæg","-")) -> - | P36: =IF($T$4=Datasheet!$B$49,"-",IF($D36="Optagelse",Datasheet!$B$77,"-")) -> - | Q36: =(_xlfn.IFS($T$4=Datasheet!$B$49,"-",$D36="Fri","-",$D36="Forbered/afrig tid","-",$D36="Rejsetid","-",$D36="Rejsetid +50%","-",$D36="Sygdom","-",$D36="optagelse",(_xlfn.IFS(Q35="Planmæssigt","-",Q35="Forsinket","Diæt",Q35="Ingen servering","Diæt",Q35="Pause ikke afholdt","Diæt + 45min")))) -> - | R36: =_xlfn.IFS($T$4=Datasheet!$B$49,"-",$D36="Fri","-",$D36="Forbered/afrig tid","-",$D36="Rejsetid","-",$D36="Rejsetid +50%","-",$D36="Sygdom","-",$D36="optagelse",(_xlfn.IFS(R35="Planmæssigt","-",R35="Forsinket","Diæt",R35="Ingen servering","Diæt",R35="Pause ikke afholdt","Diæt + 30min"))) -> - | S36: =_xlfn.IFS($T$4=Datasheet!$B$49,"-",$D36="Fri","-",$D36="Forbered/afrig tid","-",$D36="Rejsetid","-",$D36="Rejsetid +50%","-",$D36="Sygdom","-",$D36="optagelse",(_xlfn.IFS(S35="Planmæssigt","-",S35="Forsinket","Diæt",S35="Ingen servering","Diæt",S35="Pause ikke afholdt","Diæt + 15min"))) -> - | T36: =IF($T24=Datasheet!$B$49,"-",IF(D36="Optagelse",_xlfn.IFS(T35="Ingen rabat","-",T35="Rabat A",Datasheet!$B$96,T35="Rabat B",Datasheet!$B$97),"-")) -> - | U36: =IF(U35="Ingen diæt","-",U35) -> -
C37: Nej | H37: =IF($T$4=Datasheet!$B$49,grundløn/8,(_xlfn.IFS($D36="Fri","-",$D36="Optagelse",grundløn/8,$D36="rejsetid",grundløn/8,$D36="rejsetid +50%",(grundløn/8)*1.5,$D36="Forbered/afrig tid",grundløn/8,$D36="Sygdom",grundløn/8))) -> - | I37: =IF($T$4=Datasheet!$B$49,Datasheet!$C$66,_xlfn.IFS($D36="Fri","-",$D36="Sygdom","-",$D36="Rejsetid","-",D36="Rejsetid +50%","-",$D36="Optagelse",grundløn/8*$I36+grundløn/8,$D36="rejsetid","-",$D36="Forbered/afrig tid",grundløn/8*$I36+grundløn/8)) -> - | J37: =IF($T$4=Datasheet!$B$49,Datasheet!$C$66,_xlfn.IFS($D36="Fri","-",$D36="Sygdom","-",$D36="Rejsetid","-",D36="Rejsetid +50%","-",$D36="Optagelse",grundløn/8*$J36+grundløn/8,$D36="rejsetid","-",$D36="Forbered/afrig tid",grundløn/8*$J36+grundløn/8)) -> - | K37: =IF($T$4=Datasheet!$B$49,Datasheet!$C$66,_xlfn.IFS($D36="Fri","-",$D36="Sygdom","-",$D36="Rejsetid","-",D36="Rejsetid +50%","-",$D36="Optagelse",grundløn/8*$K36+grundløn/8,$D36="rejsetid","-",$D36="Forbered/afrig tid",grundløn/8*$K36+grundløn/8)) -> - | L37: =IF($T$4=Datasheet!$B$49,Datasheet!$D$66,_xlfn.IFS($D36="Fri","-",$D36="Sygdom","-",$D36="Rejsetid","-",D36="Rejsetid +50%","-",$D36="Optagelse",grundløn/8*$L36+grundløn/8,$D36="rejsetid","-",$D36="Forbered/afrig tid",grundløn/8*$L36+grundløn/8)) -> - | M37: =IF(AND(M36<>0,M36<>"-"),H37*M35,"-") -> - | N37: =IF($T$4=Datasheet!$B$49,"-",IF($D36="Optagelse",Datasheet!$B$82,"-")) -> - | O37: =IF($T$4=Datasheet!$B$49,"-",IF($D36="Optagelse",Datasheet!$B$83,"-")) -> - | P37: =IF($T$4=Datasheet!$B$49,"-",IF(D36="Optagelse",((grundløn/8)*P36),"-")) -> - | Q37: =_xlfn.IFS($T$4=Datasheet!$B$49,"-",$D36="Fri","-",$D36="Forbered/afrig tid","-",$D36="Rejsetid","-",$D36="Rejsetid +50%","-",$D36="Sygdom","-",$D36="optagelse",_xlfn.IFS(Q35="Planmæssigt","-",Q35="Forsinket",Datasheet!$B$88,Q35="Ingen servering",Datasheet!$B$88,Q35="Pause ikke afholdt",Datasheet!$B$88)) -> - | R37: =_xlfn.IFS($T$4=Datasheet!$B$49,"-",$D36="Fri","-",$D36="Forbered/afrig tid","-",$D36="Rejsetid","-",$D36="Rejsetid +50%","-",$D36="Sygdom","-",$D36="optagelse",_xlfn.IFS(R35="Planmæssigt","-",R35="Forsinket",Datasheet!$B$88,R35="Ingen servering",Datasheet!$B$88,R35="Pause ikke afholdt",Datasheet!$B$88)) -> - | S37: =_xlfn.IFS($T$4=Datasheet!$B$49,"-",$D36="Fri","-",$D36="Forbered/afrig tid","-",$D36="Rejsetid","-",$D36="Rejsetid +50%","-",$D36="Sygdom","-",$D36="optagelse",_xlfn.IFS(S35="Planmæssigt","-",S35="Forsinket",Datasheet!$B$88,S35="Ingen servering",Datasheet!$B$88,S35="Pause ikke afholdt",Datasheet!$B$88)) -> - | T37: =IF($T24=Datasheet!$B$49,"-",(_xlfn.IFS($D36="Fri","-",$D36="rejsetid","-",$D36="Rejsetid +50%","-",$D36="Sygdom","-",$D36="Forbered/afrig tid","-",$D36="Optagelse",(IF(T35="Ingen rabat","-",(SUM(H38:S38))))))) -> - | U37: =IF(OR(Q36<>"-",R36<>"-",S36<>"-",D36="Fri"),"-",_xlfn.IFS(U36="-","-",U36="Morgen",86.1,U36="Morgen+Frokost",258.3,U36="Frokost el. Aften",172.2,U36="Frokost+Aften", 344.4,U36="Fuld kost",420.5)) -> - | Y37: =SUM(Q37:S37)+SUM(U37) -> 0
H38: =IF($D36="Fri","-",(IF(H35>0,H37*H35,"-"))) -> - | I38: =IF(AND(I35<>"-",I37<>"-"),I37*I35,"-") -> - | J38: =IF(AND(J35<>"-",J37<>"-"),J37*J35,"-") -> - | K38: - | L38: - | M38: =IF(M37<>"-",M37*M36,"-") -> - | N38: =IF(AND(N35<>"-",N37<>"-"),N37*N35,"-") -> - | O38: =IF(AND(O35<>"-",O37<>"-"),O37*O35,"-") -> - | P38: =IF(AND(P35<>"-",P37<>"-"),P37*P35,"-") -> - | Q38: =_xlfn.IFS($T$4=Datasheet!$B$49,"-",$D36="Fri","-",$D36="Forbered/afrig tid","-",$D36="Rejsetid","-",$D36="Rejsetid +50%","-",$D36="Sygdom","-",$D36="optagelse",_xlfn.IFS(Q35="Planmæssigt","-",Q35="Forsinket","-",Q35="Ingen servering","-",Q35="Pause ikke afholdt",($I37*0.75))) -> - | R38: =_xlfn.IFS($T$4=Datasheet!$B$49,"-",$D36="Fri","-",$D36="Forbered/afrig tid","-",$D36="Rejsetid","-",$D36="Rejsetid +50%","-",$D36="Sygdom","-",$D36="optagelse",_xlfn.IFS(R35="Planmæssigt","-",R35="Forsinket","-",R35="Ingen servering","-",R35="Pause ikke afholdt",($J37*0.5))) -> - | S38: =_xlfn.IFS($T$4=Datasheet!$B$49,"-",$D36="Fri","-",$D36="Forbered/afrig tid","-",$D36="Rejsetid","-",$D36="Rejsetid +50%","-",$D36="Sygdom","-",$D36="optagelse",_xlfn.IFS(S35="Planmæssigt","-",S35="Forsinket","-",S35="Ingen servering","-",S35="Pause ikke afholdt",(K37*0.25))) -> - | T38: =_xlfn.IFS($D36="Fri","-",$D36="rejsetid","-",$D36="Rejsetid +50%","-",$D36="Sygdom","-",$D36="Optagelse",(_xlfn.IFS(T37="-","-",T37=0,"-",T37<>0,T37*T36)),$D36="Forbered/afrig tid","-") -> - | U38: - | W38: =_xlfn.IFS($D36="Fri",0,$D36="optagelse",(_xlfn.IFS(SUM(H38:T38)=0,0,SUM(H38:T38)>grundløn,SUM(H38:T38),SUM(H38:T38)<=grundløn,grundløn)),$D36="Forbered/afrig tid",(IF(SUM(H38:T38)=0,0,SUM(H38:T38))),$D36="rejsetid",(IF(SUM(H38:T38)=0,0,SUM(H38:T38))),$D36="rejsetid +50%",(IF(SUM(H38:T38)=0,0,SUM(H38:T38))),$D36="sygdom",(IF(SUM(H38:T38)=0,0,SUM(H38:T38)))) -> 0
B40: =B35+1 -> 2024-03-16 | C40: =WEEKDAY(B40,1) -> 1900-01-07 | D40: 08:00:00 | E40: 16:00:00 | G40: =_xlfn.IFS($D41="Fri","-",$D41="Sygdom","-",$D41<>"Fri",IF(AND(E40>0,D40>0),MOD((HOUR(E40)-HOUR(D40))+(MINUTE(E40)-MINUTE(D40))/60,24),0/24)) -> - | H40: =IF($T$4=Datasheet!$B$49,(IF(G40=0,0,(IF(AND(G40>0,G40<=4),4,(IF(AND(G40>=4,G40<=8,G40<>0),G40,8)))))),_xlfn.IFS($D41="Fri","-",$D41="Sygdom","4",$D41="Optagelse",(IF(G40>0,8,0)),$D41="Forbered/afrig tid",(IF(G40=0,0,(IF(AND(G40>0,G40<=4),4,(IF(AND(G40>=4,G40<=8,G40<>0),G40,8)))))),$D41="Rejsetid",(IF(AND(G40>0,G40<=4),4,(IF(G40>=4,G40,0)))),$D41="Rejsetid +50%",(IF(AND(G40>0,G40<=4),4,(IF(G40>=4,G40,0)))))) -> - | I40: =IF(OR(D41="Optagelse",D41="Forbered/afrig tid"),IF(G40>8,(G40-H40-J40-K40-L40),0),"-") -> - | J40: =IF(OR($D41="Optagelse",$D41="Forbered/afrig tid"),IF(G40>10,(G40-H40-K40-L40)-2,0),"-") -> - | K40: =IF(OR($D41="Optagelse",$D41="Forbered/afrig tid"),IF(G40>12,(G40-H40-L40)-4,0),"-") -> - | L40: =IF(OR(D41="Optagelse",$D41="Forbered/afrig tid"),IF(G40>13,(G40-H40)-5,0),"-") -> - | M40: 0.75 | N40: =IF($D41="Optagelse",ColTime(D40,E40,Datasheet!$C$82,Datasheet!$C$83)*24,"-") -> - | O40: =IF($D41="Optagelse",ColTime(D40,E40,Datasheet!$C$83,Datasheet!$C$84)*24,"-") -> - | P40: 0 | Q40: Planmæssigt | R40: Planmæssigt | S40: Planmæssigt | T40: Ingen rabat | U40: Ingen diæt
C41: Helligdag? | D41: Fri | H41: =IF($T$4=Datasheet!$B$49,"Timeløn",(IF(D41="Rejsetid +50%","Timeløn +50%",(IF(D41="Fri","-","Timeløn"))))) -> - | I41: =IF($T$4=Datasheet!$B$49,Datasheet!$C$65,(_xlfn.IFS($D41="Fri","-",$D41="Sygdom","-",$D41="Rejsetid","-",D41="Rejsetid +50%","-",D41="Forbered/afrig tid",Datasheet!$C$56,D41="Optagelse",Datasheet!$C$59))) -> - | J41: =IF($T$4=Datasheet!$B$49,"Rate 1",_xlfn.IFS($D41="Fri","-",$D41="Sygdom","-",$D41="Rejsetid","-",D41="Rejsetid +50%","-",D41="Rejsetid","-",D41="Forbered/afrig tid",Datasheet!$D$56,D41="Optagelse",Datasheet!$D$59)) -> - | K41: =IF($T$4=Datasheet!$B$49,"Rate 1",_xlfn.IFS(D41="Fri","-",D41="Rejsetid","-",$D41="Sygdom","-",$D41="Rejsetid","-",D41="Rejsetid +50%","-",D41="Forbered/afrig tid",Datasheet!$E$56,D41="Optagelse",Datasheet!$E$59)) -> - | L41: =IF($T$4=Datasheet!$B$49,"Rate 2",_xlfn.IFS($D41="Fri","-",$D41="Sygdom","-",$D41="Rejsetid","-",D41="Rejsetid +50%","-",D41="Rejsetid","-",D41="Forbered/afrig tid",Datasheet!$E$56,D41="Optagelse",Datasheet!$F$59)) -> - | M41: =IF(AND($C42="Ja",OR($D41="optagelse",$D41="Forbered/afrig tid")),_xlfn.IFS($D41="optagelse",$G40+$P40,$D41="Forbered/afrig tid",$G40),_xlfn.IFS($D41="Fri",0,$D41="rejsetid",0,$D41="rejsetid +50%",0,$D41="sygdom",0,$C40=1,IF(AND($C40=1,$D41="optagelse"),$G40+$P40,G40),$C40=7,IF(AND($C40=7,$D41="optagelse"),$G40+$P40,$G40),$C40=2,IF(($D40*24)<=6,ColTime($D40,6,Datasheet!$C$83,Datasheet!$C$84)*24,0),$C40=3,0,$C40=4,0,$C40=5,0,$C40=6,IF(($D40*24)>6,ColTime($D40,$E40,Datasheet!$C$83,Datasheet!$C$84)*24,0))) -> 0 | N41: =IF($T$4=Datasheet!$B$49,"-",IF($D41="Optagelse","Timetillæg","-")) -> - | O41: =IF($T$4=Datasheet!$B$49,"-",IF($D41="Optagelse","Timetillæg","-")) -> - | P41: =IF($T$4=Datasheet!$B$49,"-",IF($D41="Optagelse",Datasheet!$B$77,"-")) -> - | Q41: =(_xlfn.IFS($T$4=Datasheet!$B$49,"-",$D41="Fri","-",$D41="Forbered/afrig tid","-",$D41="Rejsetid","-",$D41="Rejsetid +50%","-",$D41="Sygdom","-",$D41="optagelse",(_xlfn.IFS(Q40="Planmæssigt","-",Q40="Forsinket","Diæt",Q40="Ingen servering","Diæt",Q40="Pause ikke afholdt","Diæt + 45min")))) -> - | R41: =_xlfn.IFS($T$4=Datasheet!$B$49,"-",$D41="Fri","-",$D41="Forbered/afrig tid","-",$D41="Rejsetid","-",$D41="Rejsetid +50%","-",$D41="Sygdom","-",$D41="optagelse",(_xlfn.IFS(R40="Planmæssigt","-",R40="Forsinket","Diæt",R40="Ingen servering","Diæt",R40="Pause ikke afholdt","Diæt + 30min"))) -> - | S41: =_xlfn.IFS($T$4=Datasheet!$B$49,"-",$D41="Fri","-",$D41="Forbered/afrig tid","-",$D41="Rejsetid","-",$D41="Rejsetid +50%","-",$D41="Sygdom","-",$D41="optagelse",(_xlfn.IFS(S40="Planmæssigt","-",S40="Forsinket","Diæt",S40="Ingen servering","Diæt",S40="Pause ikke afholdt","Diæt + 15min"))) -> - | T41: =IF($T29=Datasheet!$B$49,"-",IF(D41="Optagelse",_xlfn.IFS(T40="Ingen rabat","-",T40="Rabat A",Datasheet!$B$96,T40="Rabat B",Datasheet!$B$97),"-")) -> - | U41: =IF(U40="Ingen diæt","-",U40) -> -
C42: Nej | H42: =IF($T$4=Datasheet!$B$49,grundløn/8,(_xlfn.IFS($D41="Fri","-",$D41="Optagelse",grundløn/8,$D41="rejsetid",grundløn/8,$D41="rejsetid +50%",(grundløn/8)*1.5,$D41="Forbered/afrig tid",grundløn/8,$D41="Sygdom",grundløn/8))) -> - | I42: =IF($T$4=Datasheet!$B$49,Datasheet!$C$66,_xlfn.IFS($D41="Fri","-",$D41="Sygdom","-",$D41="Rejsetid","-",D41="Rejsetid +50%","-",$D41="Optagelse",grundløn/8*$I41+grundløn/8,$D41="rejsetid","-",$D41="Forbered/afrig tid",grundløn/8*$I41+grundløn/8)) -> - | J42: =IF($T$4=Datasheet!$B$49,Datasheet!$C$66,_xlfn.IFS($D41="Fri","-",$D41="Sygdom","-",$D41="Rejsetid","-",D41="Rejsetid +50%","-",$D41="Optagelse",grundløn/8*$J41+grundløn/8,$D41="rejsetid","-",$D41="Forbered/afrig tid",grundløn/8*$J41+grundløn/8)) -> - | K42: =IF($T$4=Datasheet!$B$49,Datasheet!$C$66,_xlfn.IFS($D41="Fri","-",$D41="Sygdom","-",$D41="Rejsetid","-",D41="Rejsetid +50%","-",$D41="Optagelse",grundløn/8*$K41+grundløn/8,$D41="rejsetid","-",$D41="Forbered/afrig tid",grundløn/8*$K41+grundløn/8)) -> - | L42: =IF($T$4=Datasheet!$B$49,Datasheet!$D$66,_xlfn.IFS($D41="Fri","-",$D41="Sygdom","-",$D41="Rejsetid","-",D41="Rejsetid +50%","-",$D41="Optagelse",grundløn/8*$L41+grundløn/8,$D41="rejsetid","-",$D41="Forbered/afrig tid",grundløn/8*$L41+grundløn/8)) -> - | M42: =IF(AND(M41<>0,M41<>"-"),H42*M40,"-") -> - | N42: =IF($T$4=Datasheet!$B$49,"-",IF($D41="Optagelse",Datasheet!$B$82,"-")) -> - | O42: =IF($T$4=Datasheet!$B$49,"-",IF($D41="Optagelse",Datasheet!$B$83,"-")) -> - | P42: =IF($T$4=Datasheet!$B$49,"-",IF(D41="Optagelse",((grundløn/8)*P41),"-")) -> - | Q42: =_xlfn.IFS($T$4=Datasheet!$B$49,"-",$D41="Fri","-",$D41="Forbered/afrig tid","-",$D41="Rejsetid","-",$D41="Rejsetid +50%","-",$D41="Sygdom","-",$D41="optagelse",_xlfn.IFS(Q40="Planmæssigt","-",Q40="Forsinket",Datasheet!$B$88,Q40="Ingen servering",Datasheet!$B$88,Q40="Pause ikke afholdt",Datasheet!$B$88)) -> - | R42: =_xlfn.IFS($T$4=Datasheet!$B$49,"-",$D41="Fri","-",$D41="Forbered/afrig tid","-",$D41="Rejsetid","-",$D41="Rejsetid +50%","-",$D41="Sygdom","-",$D41="optagelse",_xlfn.IFS(R40="Planmæssigt","-",R40="Forsinket",Datasheet!$B$88,R40="Ingen servering",Datasheet!$B$88,R40="Pause ikke afholdt",Datasheet!$B$88)) -> - | S42: =_xlfn.IFS($T$4=Datasheet!$B$49,"-",$D41="Fri","-",$D41="Forbered/afrig tid","-",$D41="Rejsetid","-",$D41="Rejsetid +50%","-",$D41="Sygdom","-",$D41="optagelse",_xlfn.IFS(S40="Planmæssigt","-",S40="Forsinket",Datasheet!$B$88,S40="Ingen servering",Datasheet!$B$88,S40="Pause ikke afholdt",Datasheet!$B$88)) -> - | T42: =IF($T29=Datasheet!$B$49,"-",(_xlfn.IFS($D41="Fri","-",$D41="rejsetid","-",$D41="Rejsetid +50%","-",$D41="Sygdom","-",$D41="Forbered/afrig tid","-",$D41="Optagelse",(IF(T40="Ingen rabat","-",(SUM(H43:S43))))))) -> - | U42: =IF(OR(Q41<>"-",R41<>"-",S41<>"-",D41="Fri"),"-",_xlfn.IFS(U41="-","-",U41="Morgen",86.1,U41="Morgen+Frokost",258.3,U41="Frokost el. Aften",172.2,U41="Frokost+Aften", 344.4,U41="Fuld kost",420.5)) -> - | Y42: =SUM(Q42:S42)+SUM(U42) -> 0
H43: =IF($D41="Fri","-",(IF(H40>0,H42*H40,"-"))) -> - | I43: =IF(AND(I40<>"-",I42<>"-"),I42*I40,"-") -> - | J43: =IF(AND(J40<>"-",J42<>"-"),J42*J40,"-") -> - | K43: - | L43: - | M43: =IF(M42<>"-",M42*M41,"-") -> - | N43: =IF(AND(N40<>"-",N42<>"-"),N42*N40,"-") -> - | O43: =IF(AND(O40<>"-",O42<>"-"),O42*O40,"-") -> - | P43: =IF(AND(P40<>"-",P42<>"-"),P42*P40,"-") -> - | Q43: =_xlfn.IFS($T$4=Datasheet!$B$49,"-",$D41="Fri","-",$D41="Forbered/afrig tid","-",$D41="Rejsetid","-",$D41="Rejsetid +50%","-",$D41="Sygdom","-",$D41="optagelse",_xlfn.IFS(Q40="Planmæssigt","-",Q40="Forsinket","-",Q40="Ingen servering","-",Q40="Pause ikke afholdt",($I42*0.75))) -> - | R43: =_xlfn.IFS($T$4=Datasheet!$B$49,"-",$D41="Fri","-",$D41="Forbered/afrig tid","-",$D41="Rejsetid","-",$D41="Rejsetid +50%","-",$D41="Sygdom","-",$D41="optagelse",_xlfn.IFS(R40="Planmæssigt","-",R40="Forsinket","-",R40="Ingen servering","-",R40="Pause ikke afholdt",($J42*0.5))) -> - | S43: =_xlfn.IFS($T$4=Datasheet!$B$49,"-",$D41="Fri","-",$D41="Forbered/afrig tid","-",$D41="Rejsetid","-",$D41="Rejsetid +50%","-",$D41="Sygdom","-",$D41="optagelse",_xlfn.IFS(S40="Planmæssigt","-",S40="Forsinket","-",S40="Ingen servering","-",S40="Pause ikke afholdt",(K42*0.25))) -> - | T43: =_xlfn.IFS($D41="Fri","-",$D41="rejsetid","-",$D41="Rejsetid +50%","-",$D41="Sygdom","-",$D41="Optagelse",(_xlfn.IFS(T42="-","-",T42=0,"-",T42<>0,T42*T41)),$D41="Forbered/afrig tid","-") -> - | U43: - | W43: =_xlfn.IFS($D41="Fri",0,$D41="optagelse",(_xlfn.IFS(SUM(H43:T43)=0,0,SUM(H43:T43)>grundløn,SUM(H43:T43),SUM(H43:T43)<=grundløn,grundløn)),$D41="Forbered/afrig tid",(IF(SUM(H43:T43)=0,0,SUM(H43:T43))),$D41="rejsetid",(IF(SUM(H43:T43)=0,0,SUM(H43:T43))),$D41="rejsetid +50%",(IF(SUM(H43:T43)=0,0,SUM(H43:T43))),$D41="sygdom",(IF(SUM(H43:T43)=0,0,SUM(H43:T43)))) -> 0
B45: =B40+1 -> 2024-03-17 | C45: =WEEKDAY(B45,1) -> 1900-01-01 | D45: 08:00:00 | E45: 16:00:00 | G45: =_xlfn.IFS($D46="Fri","-",$D46="Sygdom","-",$D46<>"Fri",IF(AND(E45>0,D45>0),MOD((HOUR(E45)-HOUR(D45))+(MINUTE(E45)-MINUTE(D45))/60,24),0/24)) -> - | H45: =IF($T$4=Datasheet!$B$49,(IF(G45=0,0,(IF(AND(G45>0,G45<=4),4,(IF(AND(G45>=4,G45<=8,G45<>0),G45,8)))))),_xlfn.IFS($D46="Fri","-",$D46="Sygdom","4",$D46="Optagelse",(IF(G45>0,8,0)),$D46="Forbered/afrig tid",(IF(G45=0,0,(IF(AND(G45>0,G45<=4),4,(IF(AND(G45>=4,G45<=8,G45<>0),G45,8)))))),$D46="Rejsetid",(IF(AND(G45>0,G45<=4),4,(IF(G45>=4,G45,0)))),$D46="Rejsetid +50%",(IF(AND(G45>0,G45<=4),4,(IF(G45>=4,G45,0)))))) -> - | I45: =IF(OR(D46="Optagelse",D46="Forbered/afrig tid"),IF(G45>8,(G45-H45-J45-K45-L45),0),"-") -> - | J45: =IF(OR($D46="Optagelse",$D46="Forbered/afrig tid"),IF(G45>10,(G45-H45-K45-L45)-2,0),"-") -> - | K45: =IF(OR($D46="Optagelse",$D46="Forbered/afrig tid"),IF(G45>12,(G45-H45-L45)-4,0),"-") -> - | L45: =IF(OR(D46="Optagelse",$D46="Forbered/afrig tid"),IF(G45>13,(G45-H45)-5,0),"-") -> - | M45: 0.75 | N45: =IF($D46="Optagelse",ColTime(D45,E45,Datasheet!$C$82,Datasheet!$C$83)*24,"-") -> - | O45: =IF($D46="Optagelse",ColTime(D45,E45,Datasheet!$C$83,Datasheet!$C$84)*24,"-") -> - | P45: 0 | Q45: Planmæssigt | R45: Planmæssigt | S45: Planmæssigt | T45: Ingen rabat | U45: Ingen diæt
C46: Helligdag? | D46: Fri | H46: =IF($T$4=Datasheet!$B$49,"Timeløn",(IF(D46="Rejsetid +50%","Timeløn +50%",(IF(D46="Fri","-","Timeløn"))))) -> - | I46: =IF($T$4=Datasheet!$B$49,Datasheet!$C$65,(_xlfn.IFS($D46="Fri","-",$D46="Sygdom","-",$D46="Rejsetid","-",D46="Rejsetid +50%","-",D46="Forbered/afrig tid",Datasheet!$C$56,D46="Optagelse",Datasheet!$C$59))) -> - | J46: =IF($T$4=Datasheet!$B$49,"Rate 1",_xlfn.IFS($D46="Fri","-",$D46="Sygdom","-",$D46="Rejsetid","-",D46="Rejsetid +50%","-",D46="Rejsetid","-",D46="Forbered/afrig tid",Datasheet!$D$56,D46="Optagelse",Datasheet!$D$59)) -> - | K46: =IF($T$4=Datasheet!$B$49,"Rate 1",_xlfn.IFS(D46="Fri","-",D46="Rejsetid","-",$D46="Sygdom","-",$D46="Rejsetid","-",D46="Rejsetid +50%","-",D46="Forbered/afrig tid",Datasheet!$E$56,D46="Optagelse",Datasheet!$E$59)) -> - | L46: =IF($T$4=Datasheet!$B$49,"Rate 2",_xlfn.IFS($D46="Fri","-",$D46="Sygdom","-",$D46="Rejsetid","-",D46="Rejsetid +50%","-",D46="Rejsetid","-",D46="Forbered/afrig tid",Datasheet!$E$56,D46="Optagelse",Datasheet!$F$59)) -> - | M46: =IF(AND($C47="Ja",OR($D46="optagelse",$D46="Forbered/afrig tid")),_xlfn.IFS($D46="optagelse",$G45+$P45,$D46="Forbered/afrig tid",$G45),_xlfn.IFS($D46="Fri",0,$D46="rejsetid",0,$D46="rejsetid +50%",0,$D46="sygdom",0,$C45=1,IF(AND($C45=1,$D46="optagelse"),$G45+$P45,G45),$C45=7,IF(AND($C45=7,$D46="optagelse"),$G45+$P45,$G45),$C45=2,IF(($D45*24)<=6,ColTime($D45,6,Datasheet!$C$83,Datasheet!$C$84)*24,0),$C45=3,0,$C45=4,0,$C45=5,0,$C45=6,IF(($D45*24)>6,ColTime($D45,$E45,Datasheet!$C$83,Datasheet!$C$84)*24,0))) -> 0 | N46: =IF($T$4=Datasheet!$B$49,"-",IF($D46="Optagelse","Timetillæg","-")) -> - | O46: =IF($T$4=Datasheet!$B$49,"-",IF($D46="Optagelse","Timetillæg","-")) -> - | P46: =IF($T$4=Datasheet!$B$49,"-",IF($D46="Optagelse",Datasheet!$B$77,"-")) -> - | Q46: =(_xlfn.IFS($T$4=Datasheet!$B$49,"-",$D46="Fri","-",$D46="Forbered/afrig tid","-",$D46="Rejsetid","-",$D46="Rejsetid +50%","-",$D46="Sygdom","-",$D46="optagelse",(_xlfn.IFS(Q45="Planmæssigt","-",Q45="Forsinket","Diæt",Q45="Ingen servering","Diæt",Q45="Pause ikke afholdt","Diæt + 45min")))) -> - | R46: =_xlfn.IFS($T$4=Datasheet!$B$49,"-",$D46="Fri","-",$D46="Forbered/afrig tid","-",$D46="Rejsetid","-",$D46="Rejsetid +50%","-",$D46="Sygdom","-",$D46="optagelse",(_xlfn.IFS(R45="Planmæssigt","-",R45="Forsinket","Diæt",R45="Ingen servering","Diæt",R45="Pause ikke afholdt","Diæt + 30min"))) -> - | S46: =_xlfn.IFS($T$4=Datasheet!$B$49,"-",$D46="Fri","-",$D46="Forbered/afrig tid","-",$D46="Rejsetid","-",$D46="Rejsetid +50%","-",$D46="Sygdom","-",$D46="optagelse",(_xlfn.IFS(S45="Planmæssigt","-",S45="Forsinket","Diæt",S45="Ingen servering","Diæt",S45="Pause ikke afholdt","Diæt + 15min"))) -> - | T46: =IF($T34=Datasheet!$B$49,"-",IF(D46="Optagelse",_xlfn.IFS(T45="Ingen rabat","-",T45="Rabat A",Datasheet!$B$96,T45="Rabat B",Datasheet!$B$97),"-")) -> - | U46: =IF(U45="Ingen diæt","-",U45) -> -
C47: Nej | H47: =IF($T$4=Datasheet!$B$49,grundløn/8,(_xlfn.IFS($D46="Fri","-",$D46="Optagelse",grundløn/8,$D46="rejsetid",grundløn/8,$D46="rejsetid +50%",(grundløn/8)*1.5,$D46="Forbered/afrig tid",grundløn/8,$D46="Sygdom",grundløn/8))) -> - | I47: =IF($T$4=Datasheet!$B$49,Datasheet!$C$66,_xlfn.IFS($D46="Fri","-",$D46="Sygdom","-",$D46="Rejsetid","-",D46="Rejsetid +50%","-",$D46="Optagelse",grundløn/8*$I46+grundløn/8,$D46="rejsetid","-",$D46="Forbered/afrig tid",grundløn/8*$I46+grundløn/8)) -> - | J47: =IF($T$4=Datasheet!$B$49,Datasheet!$C$66,_xlfn.IFS($D46="Fri","-",$D46="Sygdom","-",$D46="Rejsetid","-",D46="Rejsetid +50%","-",$D46="Optagelse",grundløn/8*$J46+grundløn/8,$D46="rejsetid","-",$D46="Forbered/afrig tid",grundløn/8*$J46+grundløn/8)) -> - | K47: =IF($T$4=Datasheet!$B$49,Datasheet!$C$66,_xlfn.IFS($D46="Fri","-",$D46="Sygdom","-",$D46="Rejsetid","-",D46="Rejsetid +50%","-",$D46="Optagelse",grundløn/8*$K46+grundløn/8,$D46="rejsetid","-",$D46="Forbered/afrig tid",grundløn/8*$K46+grundløn/8)) -> - | L47: =IF($T$4=Datasheet!$B$49,Datasheet!$D$66,_xlfn.IFS($D46="Fri","-",$D46="Sygdom","-",$D46="Rejsetid","-",D46="Rejsetid +50%","-",$D46="Optagelse",grundløn/8*$L46+grundløn/8,$D46="rejsetid","-",$D46="Forbered/afrig tid",grundløn/8*$L46+grundløn/8)) -> - | M47: =IF(AND(M46<>0,M46<>"-"),H47*M45,"-") -> - | N47: =IF($T$4=Datasheet!$B$49,"-",IF($D46="Optagelse",Datasheet!$B$82,"-")) -> - | O47: =IF($T$4=Datasheet!$B$49,"-",IF($D46="Optagelse",Datasheet!$B$83,"-")) -> - | P47: =IF($T$4=Datasheet!$B$49,"-",IF(D46="Optagelse",((grundløn/8)*P46),"-")) -> - | Q47: =_xlfn.IFS($T$4=Datasheet!$B$49,"-",$D46="Fri","-",$D46="Forbered/afrig tid","-",$D46="Rejsetid","-",$D46="Rejsetid +50%","-",$D46="Sygdom","-",$D46="optagelse",_xlfn.IFS(Q45="Planmæssigt","-",Q45="Forsinket",Datasheet!$B$88,Q45="Ingen servering",Datasheet!$B$88,Q45="Pause ikke afholdt",Datasheet!$B$88)) -> - | R47: =_xlfn.IFS($T$4=Datasheet!$B$49,"-",$D46="Fri","-",$D46="Forbered/afrig tid","-",$D46="Rejsetid","-",$D46="Rejsetid +50%","-",$D46="Sygdom","-",$D46="optagelse",_xlfn.IFS(R45="Planmæssigt","-",R45="Forsinket",Datasheet!$B$88,R45="Ingen servering",Datasheet!$B$88,R45="Pause ikke afholdt",Datasheet!$B$88)) -> - | S47: =_xlfn.IFS($T$4=Datasheet!$B$49,"-",$D46="Fri","-",$D46="Forbered/afrig tid","-",$D46="Rejsetid","-",$D46="Rejsetid +50%","-",$D46="Sygdom","-",$D46="optagelse",_xlfn.IFS(S45="Planmæssigt","-",S45="Forsinket",Datasheet!$B$88,S45="Ingen servering",Datasheet!$B$88,S45="Pause ikke afholdt",Datasheet!$B$88)) -> - | T47: =IF($T34=Datasheet!$B$49,"-",(_xlfn.IFS($D46="Fri","-",$D46="rejsetid","-",$D46="Rejsetid +50%","-",$D46="Sygdom","-",$D46="Forbered/afrig tid","-",$D46="Optagelse",(IF(T45="Ingen rabat","-",(SUM(H48:S48))))))) -> - | U47: =IF(OR(Q46<>"-",R46<>"-",S46<>"-",D46="Fri"),"-",_xlfn.IFS(U46="-","-",U46="Morgen",86.1,U46="Morgen+Frokost",258.3,U46="Frokost el. Aften",172.2,U46="Frokost+Aften", 344.4,U46="Fuld kost",420.5)) -> - | Y47: =SUM(Q47:S47)+SUM(U47) -> 0
H48: =IF($D46="Fri","-",(IF(H45>0,H47*H45,"-"))) -> - | I48: =IF(AND(I45<>"-",I47<>"-"),I47*I45,"-") -> - | J48: =IF(AND(J45<>"-",J47<>"-"),J47*J45,"-") -> - | K48: - | L48: - | M48: =IF(M47<>"-",M47*M46,"-") -> - | N48: =IF(AND(N45<>"-",N47<>"-"),N47*N45,"-") -> - | O48: =IF(AND(O45<>"-",O47<>"-"),O47*O45,"-") -> - | P48: =IF(AND(P45<>"-",P47<>"-"),P47*P45,"-") -> - | Q48: =_xlfn.IFS($T$4=Datasheet!$B$49,"-",$D46="Fri","-",$D46="Forbered/afrig tid","-",$D46="Rejsetid","-",$D46="Rejsetid +50%","-",$D46="Sygdom","-",$D46="optagelse",_xlfn.IFS(Q45="Planmæssigt","-",Q45="Forsinket","-",Q45="Ingen servering","-",Q45="Pause ikke afholdt",($I47*0.75))) -> - | R48: =_xlfn.IFS($T$4=Datasheet!$B$49,"-",$D46="Fri","-",$D46="Forbered/afrig tid","-",$D46="Rejsetid","-",$D46="Rejsetid +50%","-",$D46="Sygdom","-",$D46="optagelse",_xlfn.IFS(R45="Planmæssigt","-",R45="Forsinket","-",R45="Ingen servering","-",R45="Pause ikke afholdt",($J47*0.5))) -> - | S48: =_xlfn.IFS($T$4=Datasheet!$B$49,"-",$D46="Fri","-",$D46="Forbered/afrig tid","-",$D46="Rejsetid","-",$D46="Rejsetid +50%","-",$D46="Sygdom","-",$D46="optagelse",_xlfn.IFS(S45="Planmæssigt","-",S45="Forsinket","-",S45="Ingen servering","-",S45="Pause ikke afholdt",(K47*0.25))) -> - | T48: =_xlfn.IFS($D46="Fri","-",$D46="rejsetid","-",$D46="Rejsetid +50%","-",$D46="Sygdom","-",$D46="Optagelse",(_xlfn.IFS(T47="-","-",T47=0,"-",T47<>0,T47*T46)),$D46="Forbered/afrig tid","-") -> - | U48: - | W48: =_xlfn.IFS($D46="Fri",0,$D46="optagelse",(_xlfn.IFS(SUM(H48:T48)=0,0,SUM(H48:T48)>grundløn,SUM(H48:T48),SUM(H48:T48)<=grundløn,grundløn)),$D46="Forbered/afrig tid",(IF(SUM(H48:T48)=0,0,SUM(H48:T48))),$D46="rejsetid",(IF(SUM(H48:T48)=0,0,SUM(H48:T48))),$D46="rejsetid +50%",(IF(SUM(H48:T48)=0,0,SUM(H48:T48))),$D46="sygdom",(IF(SUM(H48:T48)=0,0,SUM(H48:T48)))) -> 0
R49: Dage | T49: Dagsløn
L50: ANTAL AFTALTE FORBEREDELSES- OG AFRIG DAGE UDEN OVERTID | R50: 0 | S50: á | T50: =grundløn -> 0 | W50: =IF(R50<>0,R50*T50,"-") -> -
